Workbook

Sheet rate tree
C1: 0.005
C2: 0.0076870465 | D2: 0.0086785538 | E2: 0 | F2: 0 | G2: 0 | H2: 0 | I2: 0 | J2: 0 | K2: 0 | L2: 0 | M2: 0 | N2: 0 | O2: 0 | P2: 0 | Q2: 0 | R2: 0 | S2: 0 | T2: 0 | U2: 0 | V2: 0 | W2: 0 | X2: 0 | Y2: 0 | Z2: 0 | AA2: 0 | AB2: 0 | AC2: 0 | AD2: 0 | AE2: 0 | AF2: 0 | AG2: 0 | AH2: 0 | AI2: 0 | AJ2: 0 | AK2: 0 | AL2: 0 | AM2: 0 | AN2: 0 | AO2: 0 | AP2: 0 | AQ2: 0 | AR2: 0 | AS2: 0 | AT2: 0 | AU2: 0 | AV2: 0 | AW2: 0 | AX2: 0 | AY2: 0 | AZ2: 0 | BA2: 0 | BB2: 0 | BC2: 0 | BD2: 0 | BE2: 0 | BF2: 0 | BG2: 0 | BH2: 0 | BI2: 0 | BJ2: 0 | BK2: 0 | BL2: 0 | BM2: 0 | BN2: 0 | BO2: 0 | BP2: 0 | BQ2: 0 | BR2: 0 | BS2: 0
C3: 0.012684988 | D3: 0.013727646 | E3: 0.014855691 | F3: 0 | G3: 0 | H3: 0 | I3: 0 | J3: 0 | K3: 0 | L3: 0 | M3: 0 | N3: 0 | O3: 0 | P3: 0 | Q3: 0 | R3: 0 | S3: 0 | T3: 0 | U3: 0 | V3: 0 | W3: 0 | X3: 0 | Y3: 0 | Z3: 0 | AA3: 0 | AB3: 0 | AC3: 0 | AD3: 0 | AE3: 0 | AF3: 0 | AG3: 0 | AH3: 0 | AI3: 0 | AJ3: 0 | AK3: 0 | AL3: 0 | AM3: 0 | AN3: 0 | AO3: 0 | AP3: 0 | AQ3: 0 | AR3: 0 | AS3: 0 | AT3: 0 | AU3: 0 | AV3: 0 | AW3: 0 | AX3: 0 | AY3: 0 | AZ3: 0 | BA3: 0 | BB3: 0 | BC3: 0 | BD3: 0 | BE3: 0 | BF3: 0 | BG3: 0 | BH3: 0 | BI3: 0 | BJ3: 0 | BK3: 0 | BL3: 0 | BM3: 0 | BN3: 0 | BO3: 0 | BP3: 0 | BQ3: 0 | BR3: 0 | BS3: 0
C4: 0.017252592 | D4: 0.018381877 | E4: 0.019584724 | F4: 0.020865876 | G4: 0 | H4: 0 | I4: 0 | J4: 0 | K4: 0 | L4: 0 | M4: 0 | N4: 0 | O4: 0 | P4: 0 | Q4: 0 | R4: 0 | S4: 0 | T4: 0 | U4: 0 | V4: 0 | W4: 0 | X4: 0 | Y4: 0 | Z4: 0 | AA4: 0 | AB4: 0 | AC4: 0 | AD4: 0 | AE4: 0 | AF4: 0 | AG4: 0 | AH4: 0 | AI4: 0 | AJ4: 0 | AK4: 0 | AL4: 0 | AM4: 0 | AN4: 0 | AO4: 0 | AP4: 0 | AQ4: 0 | AR4: 0 | AS4: 0 | AT4: 0 | AU4: 0 | AV4: 0 | AW4: 0 | AX4: 0 | AY4: 0 | AZ4: 0 | BA4: 0 | BB4: 0 | BC4: 0 | BD4: 0 | BE4: 0 | BF4: 0 | BG4: 0 | BH4: 0 | BI4: 0 | BJ4: 0 | BK4: 0 | BL4: 0 | BM4: 0 | BN4: 0 | BO4: 0 | BP4: 0 | BQ4: 0 | BR4: 0 | BS4: 0
C5: 0.021155842 | D5: 0.022490595 | E5: 0.023909065 | F5: 0.025416439 | G5: 0.027018217 | H5: 0 | I5: 0 | J5: 0 | K5: 0 | L5: 0 | M5: 0 | N5: 0 | O5: 0 | P5: 0 | Q5: 0 | R5: 0 | S5: 0 | T5: 0 | U5: 0 | V5: 0 | W5: 0 | X5: 0 | Y5: 0 | Z5: 0 | AA5: 0 | AB5: 0 | AC5: 0 | AD5: 0 | AE5: 0 | AF5: 0 | AG5: 0 | AH5: 0 | AI5: 0 | AJ5: 0 | AK5: 0 | AL5: 0 | AM5: 0 | AN5: 0 | AO5: 0 | AP5: 0 | AQ5: 0 | AR5: 0 | AS5: 0 | AT5: 0 | AU5: 0 | AV5: 0 | AW5: 0 | AX5: 0 | AY5: 0 | AZ5: 0 | BA5: 0 | BB5: 0 | BC5: 0 | BD5: 0 | BE5: 0 | BF5: 0 | BG5: 0 | BH5: 0 | BI5: 0 | BJ5: 0 | BK5: 0 | BL5: 0 | BM5: 0 | BN5: 0 | BO5: 0 | BP5: 0 | BQ5: 0 | BR5: 0 | BS5: 0
C6: 0.024437939 | D6: 0.026005107 | E6: 0.027672094 | F6: 0.029445169 | G6: 0.031330982 | H6: 0.033336588 | I6: 0 | J6: 0 | K6: 0 | L6: 0 | M6: 0 | N6: 0 | O6: 0 | P6: 0 | Q6: 0 | R6: 0 | S6: 0 | T6: 0 | U6: 0 | V6: 0 | W6: 0 | X6: 0 | Y6: 0 | Z6: 0 | AA6: 0 | AB6: 0 | AC6: 0 | AD6: 0 | AE6: 0 | AF6: 0 | AG6: 0 | AH6: 0 | AI6: 0 | AJ6: 0 | AK6: 0 | AL6: 0 | AM6: 0 | AN6: 0 | AO6: 0 | AP6: 0 | AQ6: 0 | AR6: 0 | AS6: 0 | AT6: 0 | AU6: 0 | AV6: 0 | AW6: 0 | AX6: 0 | AY6: 0 | AZ6: 0 | BA6: 0 | BB6: 0 | BC6: 0 | BD6: 0 | BE6: 0 | BF6: 0 | BG6: 0 | BH6: 0 | BI6: 0 | BJ6: 0 | BK6: 0 | BL6: 0 | BM6: 0 | BN6: 0 | BO6: 0 | BP6: 0 | BQ6: 0 | BR6: 0 | BS6: 0
C7: 0.027181736 | D7: 0.028966744 | E7: 0.030868088 | F7: 0.032893231 | G7: 0.035050101 | H7: 0.037347116 | I7: 0.03979321 | J7: 0 | K7: 0 | L7: 0 | M7: 0 | N7: 0 | O7: 0 | P7: 0 | Q7: 0 | R7: 0 | S7: 0 | T7: 0 | U7: 0 | V7: 0 | W7: 0 | X7: 0 | Y7: 0 | Z7: 0 | AA7: 0 | AB7: 0 | AC7: 0 | AD7: 0 | AE7: 0 | AF7: 0 | AG7: 0 | AH7: 0 | AI7: 0 | AJ7: 0 | AK7: 0 | AL7: 0 | AM7: 0 | AN7: 0 | AO7: 0 | AP7: 0 | AQ7: 0 | AR7: 0 | AS7: 0 | AT7: 0 | AU7: 0 | AV7: 0 | AW7: 0 | AX7: 0 | AY7: 0 | AZ7: 0 | BA7: 0 | BB7: 0 | BC7: 0 | BD7: 0 | BE7: 0 | BF7: 0 | BG7: 0 | BH7: 0 | BI7: 0 | BJ7: 0 | BK7: 0 | BL7: 0 | BM7: 0 | BN7: 0 | BO7: 0 | BP7: 0 | BQ7: 0 | BR7: 0 | BS7: 0
C8: 0.029371292 | D8: 0.031336535 | E8: 0.033432189 | F8: 0.03566676 | G8: 0.038049289 | H8: 0.040589385 | I8: 0.043297253 | J8: 0.046183733 | K8: 0 | L8: 0 | M8: 0 | N8: 0 | O8: 0 | P8: 0 | Q8: 0 | R8: 0 | S8: 0 | T8: 0 | U8: 0 | V8: 0 | W8: 0 | X8: 0 | Y8: 0 | Z8: 0 | AA8: 0 | AB8: 0 | AC8: 0 | AD8: 0 | AE8: 0 | AF8: 0 | AG8: 0 | AH8: 0 | AI8: 0 | AJ8: 0 | AK8: 0 | AL8: 0 | AM8: 0 | AN8: 0 | AO8: 0 | AP8: 0 | AQ8: 0 | AR8: 0 | AS8: 0 | AT8: 0 | AU8: 0 | AV8: 0 | AW8: 0 | AX8: 0 | AY8: 0 | AZ8: 0 | BA8: 0 | BB8: 0 | BC8: 0 | BD8: 0 | BE8: 0 | BF8: 0 | BG8: 0 | BH8: 0 | BI8: 0 | BJ8: 0 | BK8: 0 | BL8: 0 | BM8: 0 | BN8: 0 | BO8: 0 | BP8: 0 | BQ8: 0 | BR8: 0 | BS8: 0
C9: 0.031364093 | D9: 0.033489597 | E9: 0.035757889 | F9: 0.038178388 | G9: 0.040761111 | H9: 0.04351671 | I9: 0.046456505 | J9: 0.049592522 | K9: 0.052937535 | L9: 0 | M9: 0 | N9: 0 | O9: 0 | P9: 0 | Q9: 0 | R9: 0 | S9: 0 | T9: 0 | U9: 0 | V9: 0 | W9: 0 | X9: 0 | Y9: 0 | Z9: 0 | AA9: 0 | AB9: 0 | AC9: 0 | AD9: 0 | AE9: 0 | AF9: 0 | AG9: 0 | AH9: 0 | AI9: 0 | AJ9: 0 | AK9: 0 | AL9: 0 | AM9: 0 | AN9: 0 | AO9: 0 | AP9: 0 | AQ9: 0 | AR9: 0 | AS9: 0 | AT9: 0 | AU9: 0 | AV9: 0 | AW9: 0 | AX9: 0 | AY9: 0 | AZ9: 0 | BA9: 0 | BB9: 0 | BC9: 0 | BD9: 0 | BE9: 0 | BF9: 0 | BG9: 0 | BH9: 0 | BI9: 0 | BJ9: 0 | BK9: 0 | BL9: 0 | BM9: 0 | BN9: 0 | BO9: 0 | BP9: 0 | BQ9: 0 | BR9: 0 | BS9: 0
C10: 0.032926421 | D10: 0.035175611 | E10: 0.037577037 | F10: 0.040140808 | G10: 0.04287768 | H10: 0.045799088 | I10: 0.048917191 | J10: 0.052244909 | K10: 0.055795969 | L10: 0.059584947 | M10: 0 | N10: 0 | O10: 0 | P10: 0 | Q10: 0 | R10: 0 | S10: 0 | T10: 0 | U10: 0 | V10: 0 | W10: 0 | X10: 0 | Y10: 0 | Z10: 0 | AA10: 0 | AB10: 0 | AC10: 0 | AD10: 0 | AE10: 0 | AF10: 0 | AG10: 0 | AH10: 0 | AI10: 0 | AJ10: 0 | AK10: 0 | AL10: 0 | AM10: 0 | AN10: 0 | AO10: 0 | AP10: 0 | AQ10: 0 | AR10: 0 | AS10: 0 | AT10: 0 | AU10: 0 | AV10: 0 | AW10: 0 | AX10: 0 | AY10: 0 | AZ10: 0 | BA10: 0 | BB10: 0 | BC10: 0 | BD10: 0 | BE10: 0 | BF10: 0 | BG10: 0 | BH10: 0 | BI10: 0 | BJ10: 0 | BK10: 0 | BL10: 0 | BM10: 0 | BN10: 0 | BO10: 0 | BP10: 0 | BQ10: 0 | BR10: 0 | BS10: 0
C11: 0.034302071 | D11: 0.036656456 | E11: 0.039170916 | F11: 0.041856124 | G11: 0.044723433 | H11: 0.04778492 | I11: 0.051053426 | J11: 0.054542598 | K11: 0.058266935 | L11: 0.062241836 | M11: 0.066483646 | N11: 0 | O11: 0 | P11: 0 | Q11: 0 | R11: 0 | S11: 0 | T11: 0 | U11: 0 | V11: 0 | W11: 0 | X11: 0 | Y11: 0 | Z11: 0 | AA11: 0 | AB11: 0 | AC11: 0 | AD11: 0 | AE11: 0 | AF11: 0 | AG11: 0 | AH11: 0 | AI11: 0 | AJ11: 0 | AK11: 0 | AL11: 0 | AM11: 0 | AN11: 0 | AO11: 0 | AP11: 0 | AQ11: 0 | AR11: 0 | AS11: 0 | AT11: 0 | AU11: 0 | AV11: 0 | AW11: 0 | AX11: 0 | AY11: 0 | AZ11: 0 | BA11: 0 | BB11: 0 | BC11: 0 | BD11: 0 | BE11: 0 | BF11: 0 | BG11: 0 | BH11: 0 | BI11: 0 | BJ11: 0 | BK11: 0 | BL11: 0 | BM11: 0 | BN11: 0 | BO11: 0 | BP11: 0 | BQ11: 0 | BR11: 0 | BS11: 0
C12: 0.035178857 | D12: 0.037600543 | E12: 0.040187309 | F12: 0.04295018 | G12: 0.045900888 | H12: 0.049051911 | I12: 0.052416516 | J12: 0.056008803 | K12: 0.059843752 | L12: 0.06393727 | M12: 0.068306243 | N12: 0.072968585 | O12: 0 | P12: 0 | Q12: 0 | R12: 0 | S12: 0 | T12: 0 | U12: 0 | V12: 0 | W12: 0 | X12: 0 | Y12: 0 | Z12: 0 | AA12: 0 | AB12: 0 | AC12: 0 | AD12: 0 | AE12: 0 | AF12: 0 | AG12: 0 | AH12: 0 | AI12: 0 | AJ12: 0 | AK12: 0 | AL12: 0 | AM12: 0 | AN12: 0 | AO12: 0 | AP12: 0 | AQ12: 0 | AR12: 0 | AS12: 0 | AT12: 0 | AU12: 0 | AV12: 0 | AW12: 0 | AX12: 0 | AY12: 0 | AZ12: 0 | BA12: 0 | BB12: 0 | BC12: 0 | BD12: 0 | BE12: 0 | BF12: 0 | BG12: 0 | BH12: 0 | BI12: 0 | BJ12: 0 | BK12: 0 | BL12: 0 | BM12: 0 | BN12: 0 | BO12: 0 | BP12: 0 | BQ12: 0 | BR12: 0 | BS12: 0
C13: 0.035917431 | D13: 0.038394272 | E13: 0.041040212 | F13: 0.043866559 | G13: 0.046885343 | H13: 0.050109361 | I13: 0.053552217 | J13: 0.057228372 | K13: 0.061153186 | L13: 0.065342971 | M13: 0.069815043 | N13: 0.07458777 | O13: 0.079680628 | P13: 0 | Q13: 0 | R13: 0 | S13: 0 | T13: 0 | U13: 0 | V13: 0 | W13: 0 | X13: 0 | Y13: 0 | Z13: 0 | AA13: 0 | AB13: 0 | AC13: 0 | AD13: 0 | AE13: 0 | AF13: 0 | AG13: 0 | AH13: 0 | AI13: 0 | AJ13: 0 | AK13: 0 | AL13: 0 | AM13: 0 | AN13: 0 | AO13: 0 | AP13: 0 | AQ13: 0 | AR13: 0 | AS13: 0 | AT13: 0 | AU13: 0 | AV13: 0 | AW13: 0 | AX13: 0 | AY13: 0 | AZ13: 0 | BA13: 0 | BB13: 0 | BC13: 0 | BD13: 0 | BE13: 0 | BF13: 0 | BG13: 0 | BH13: 0 | BI13: 0 | BJ13: 0 | BK13: 0 | BL13: 0 | BM13: 0 | BN13: 0 | BO13: 0 | BP13: 0 | BQ13: 0 | BR13: 0 | BS13: 0
C14: 0.036430862 | D14: 0.038946148 | E14: 0.041633341 | F14: 0.044503946 | G14: 0.047570203 | H14: 0.05084513 | I14: 0.054342569 | J14: 0.058077232 | K14: 0.062064746 | L14: 0.066321707 | M14: 0.070865729 | N14: 0.075715498 | O14: 0.080890827 | P14: 0.086412711 | Q14: 0 | R14: 0 | S14: 0 | T14: 0 | U14: 0 | V14: 0 | W14: 0 | X14: 0 | Y14: 0 | Z14: 0 | AA14: 0 | AB14: 0 | AC14: 0 | AD14: 0 | AE14: 0 | AF14: 0 | AG14: 0 | AH14: 0 | AI14: 0 | AJ14: 0 | AK14: 0 | AL14: 0 | AM14: 0 | AN14: 0 | AO14: 0 | AP14: 0 | AQ14: 0 | AR14: 0 | AS14: 0 | AT14: 0 | AU14: 0 | AV14: 0 | AW14: 0 | AX14: 0 | AY14: 0 | AZ14: 0 | BA14: 0 | BB14: 0 | BC14: 0 | BD14: 0 | BE14: 0 | BF14: 0 | BG14: 0 | BH14: 0 | BI14: 0 | BJ14: 0 | BK14: 0 | BL14: 0 | BM14: 0 | BN14: 0 | BO14: 0 | BP14: 0 | BQ14: 0 | BR14: 0 | BS14: 0
C15: 0.036741646 | D15: 0.039280687 | E15: 0.041993401 | F15: 0.044891418 | G15: 0.047987112 | H15: 0.051293644 | I15: 0.054825007 | J15: 0.058596075 | K15: 0.062622646 | L15: 0.066921497 | M15: 0.071510437 | N15: 0.076408353 | O15: 0.081635277 | P15: 0.087212432 | Q15: 0.093162296 | R15: 0 | S15: 0 | T15: 0 | U15: 0 | V15: 0 | W15: 0 | X15: 0 | Y15: 0 | Z15: 0 | AA15: 0 | AB15: 0 | AC15: 0 | AD15: 0 | AE15: 0 | AF15: 0 | AG15: 0 | AH15: 0 | AI15: 0 | AJ15: 0 | AK15: 0 | AL15: 0 | AM15: 0 | AN15: 0 | AO15: 0 | AP15: 0 | AQ15: 0 | AR15: 0 | AS15: 0 | AT15: 0 | AU15: 0 | AV15: 0 | AW15: 0 | AX15: 0 | AY15: 0 | AZ15: 0 | BA15: 0 | BB15: 0 | BC15: 0 | BD15: 0 | BE15: 0 | BF15: 0 | BG15: 0 | BH15: 0 | BI15: 0 | BJ15: 0 | BK15: 0 | BL15: 0 | BM15: 0 | BN15: 0 | BO15: 0 | BP15: 0 | BQ15: 0 | BR15: 0 | BS15: 0
C16: 0.036741746 | D16: 0.039282834 | E16: 0.041997855 | F16: 0.044898462 | G16: 0.047997053 | H16: 0.051306814 | I16: 0.054841766 | J16: 0.058616808 | K16: 0.062647772 | L16: 0.066951463 | M16: 0.071545723 | N16: 0.076449473 | O16: 0.081682778 | P16: 0.087266897 | Q16: 0.093224344 | R16: 0.099578946 | S16: 0 | T16: 0 | U16: 0 | V16: 0 | W16: 0 | X16: 0 | Y16: 0 | Z16: 0 | AA16: 0 | AB16: 0 | AC16: 0 | AD16: 0 | AE16: 0 | AF16: 0 | AG16: 0 | AH16: 0 | AI16: 0 | AJ16: 0 | AK16: 0 | AL16: 0 | AM16: 0 | AN16: 0 | AO16: 0 | AP16: 0 | AQ16: 0 | AR16: 0 | AS16: 0 | AT16: 0 | AU16: 0 | AV16: 0 | AW16: 0 | AX16: 0 | AY16: 0 | AZ16: 0 | BA16: 0 | BB16: 0 | BC16: 0 | BD16: 0 | BE16: 0 | BF16: 0 | BG16: 0 | BH16: 0 | BI16: 0 | BJ16: 0 | BK16: 0 | BL16: 0 | BM16: 0 | BN16: 0 | BO16: 0 | BP16: 0 | BQ16: 0 | BR16: 0 | BS16: 0
C17: 0.036831894 | D17: 0.039380741 | E17: 0.042104172 | F17: 0.045013893 | G17: 0.04812236 | H17: 0.051442823 | I17: 0.05498937 | J17: 0.058776976 | K17: 0.062821548 | L17: 0.067139982 | M17: 0.071750209 | N17: 0.076671254 | O17: 0.081923288 | P17: 0.08752769 | Q17: 0.093507099 | R17: 0.099885481 | S17: 0.10668818 | T17: 0 | U17: 0 | V17: 0 | W17: 0 | X17: 0 | Y17: 0 | Z17: 0 | AA17: 0 | AB17: 0 | AC17: 0 | AD17: 0 | AE17: 0 | AF17: 0 | AG17: 0 | AH17: 0 | AI17: 0 | AJ17: 0 | AK17: 0 | AL17: 0 | AM17: 0 | AN17: 0 | AO17: 0 | AP17: 0 | AQ17: 0 | AR17: 0 | AS17: 0 | AT17: 0 | AU17: 0 | AV17: 0 | AW17: 0 | AX17: 0 | AY17: 0 | AZ17: 0 | BA17: 0 | BB17: 0 | BC17: 0 | BD17: 0 | BE17: 0 | BF17: 0 | BG17: 0 | BH17: 0 | BI17: 0 | BJ17: 0 | BK17: 0 | BL17: 0 | BM17: 0 | BN17: 0 | BO17: 0 | BP17: 0 | BQ17: 0 | BR17: 0 | BS17: 0
C18: 0.036650536 | D18: 0.03918883 | E18: 0.041901131 | F18: 0.044799116 | G18: 0.047895213 | H18: 0.051202643 | I18: 0.054735463 | J18: 0.058508615 | K18: 0.062537977 | L18: 0.06684041 | M18: 0.071433813 | N18: 0.076337175 | O18: 0.081570634 | P18: 0.087155533 | Q18: 0.093114477 | R18: 0.099471396 | S18: 0.1062516 | T18: 0.11348186 | U18: 0 | V18: 0 | W18: 0 | X18: 0 | Y18: 0 | Z18: 0 | AA18: 0 | AB18: 0 | AC18: 0 | AD18: 0 | AE18: 0 | AF18: 0 | AG18: 0 | AH18: 0 | AI18: 0 | AJ18: 0 | AK18: 0 | AL18: 0 | AM18: 0 | AN18: 0 | AO18: 0 | AP18: 0 | AQ18: 0 | AR18: 0 | AS18: 0 | AT18: 0 | AU18: 0 | AV18: 0 | AW18: 0 | AX18: 0 | AY18: 0 | AZ18: 0 | BA18: 0 | BB18: 0 | BC18: 0 | BD18: 0 | BE18: 0 | BF18: 0 | BG18: 0 | BH18: 0 | BI18: 0 | BJ18: 0 | BK18: 0 | BL18: 0 | BM18: 0 | BN18: 0 | BO18: 0 | BP18: 0 | BQ18: 0 | BR18: 0 | BS18: 0
C19: 0.036341489 | D19: 0.038860233 | E19: 0.041551784 | F19: 0.044427753 | G19: 0.047500494 | H19: 0.050783151 | I19: 0.054289703 | J19: 0.05803501 | K19: 0.062034861 | L19: 0.066306026 | M19: 0.070866311 | N19: 0.075734607 | O19: 0.080930949 | P19: 0.086476573 | Q19: 0.092393975 | R19: 0.098706971 | S19: 0.10544076 | T19: 0.11262197 | U19: 0.12027875 | V19: 0 | W19: 0 | X19: 0 | Y19: 0 | Z19: 0 | AA19: 0 | AB19: 0 | AC19: 0 | AD19: 0 | AE19: 0 | AF19: 0 | AG19: 0 | AH19: 0 | AI19: 0 | AJ19: 0 | AK19: 0 | AL19: 0 | AM19: 0 | AN19: 0 | AO19: 0 | AP19: 0 | AQ19: 0 | AR19: 0 | AS19: 0 | AT19: 0 | AU19: 0 | AV19: 0 | AW19: 0 | AX19: 0 | AY19: 0 | AZ19: 0 | BA19: 0 | BB19: 0 | BC19: 0 | BD19: 0 | BE19: 0 | BF19: 0 | BG19: 0 | BH19: 0 | BI19: 0 | BJ19: 0 | BK19: 0 | BL19: 0 | BM19: 0 | BN19: 0 | BO19: 0 | BP19: 0 | BQ19: 0 | BR19: 0 | BS19: 0
C20: 0.035918447 | D20: 0.038409795 | E20: 0.041072222 | F20: 0.043917235 | G20: 0.046957081 | H20: 0.050204789 | I20: 0.053674218 | J20: 0.057380102 | K20: 0.061338098 | L20: 0.065564838 | M20: 0.070077983 | N20: 0.074896273 | O20: 0.080039585 | P20: 0.08552899 | Q20: 0.091386815 | R20: 0.097636695 | S20: 0.10430364 | T20: 0.11141411 | U20: 0.11899603 | V20: 0.12707892 | W20: 0 | X20: 0 | Y20: 0 | Z20: 0 | AA20: 0 | AB20: 0 | AC20: 0 | AD20: 0 | AE20: 0 | AF20: 0 | AG20: 0 | AH20: 0 | AI20: 0 | AJ20: 0 | AK20: 0 | AL20: 0 | AM20: 0 | AN20: 0 | AO20: 0 | AP20: 0 | AQ20: 0 | AR20: 0 | AS20: 0 | AT20: 0 | AU20: 0 | AV20: 0 | AW20: 0 | AX20: 0 | AY20: 0 | AZ20: 0 | BA20: 0 | BB20: 0 | BC20: 0 | BD20: 0 | BE20: 0 | BF20: 0 | BG20: 0 | BH20: 0 | BI20: 0 | BJ20: 0 | BK20: 0 | BL20: 0 | BM20: 0 | BN20: 0 | BO20: 0 | BP20: 0 | BQ20: 0 | BR20: 0 | BS20: 0
C21: 0.035524404 | D21: 0.037990286 | E21: 0.040625664 | F21: 0.043441954 | G21: 0.046451306 | H21: 0.049666654 | I21: 0.053101753 | J21: 0.056771229 | K21: 0.060690631 | L21: 0.064876476 | M21: 0.069346305 | N21: 0.074118737 | O21: 0.079213526 | P21: 0.084651614 | Q21: 0.090455197 | R21: 0.096647778 | S21: 0.10325424 | T21: 0.11030089 | U21: 0.11781554 | V21: 0.12582756 | W21: 0.13436796 | X21: 0 | Y21: 0 | Z21: 0 | AA21: 0 | AB21: 0 | AC21: 0 | AD21: 0 | AE21: 0 | AF21: 0 | AG21: 0 | AH21: 0 | AI21: 0 | AJ21: 0 | AK21: 0 | AL21: 0 | AM21: 0 | AN21: 0 | AO21: 0 | AP21: 0 | AQ21: 0 | AR21: 0 | AS21: 0 | AT21: 0 | AU21: 0 | AV21: 0 | AW21: 0 | AX21: 0 | AY21: 0 | AZ21: 0 | BA21: 0 | BB21: 0 | BC21: 0 | BD21: 0 | BE21: 0 | BF21: 0 | BG21: 0 | BH21: 0 | BI21: 0 | BJ21: 0 | BK21: 0 | BL21: 0 | BM21: 0 | BN21: 0 | BO21: 0 | BP21: 0 | BQ21: 0 | BR21: 0 | BS21: 0
C22: 0.034786038 | D22: 0.03720311 | E22: 0.039786506 | F22: 0.042547443 | G22: 0.045497862 | H22: 0.048650471 | I22: 0.052018791 | J22: 0.0556172 | K22: 0.059460982 | L22: 0.063566377 | M22: 0.067950634 | N22: 0.072632064 | O22: 0.077630093 | P22: 0.082965324 | Q22: 0.08865959 | R22: 0.09473602 | S22: 0.10121909 | T22: 0.10813471 | U22: 0.11551024 | V22: 0.12337459 | W22: 0.1317583 | X22: 0.14069355 | Y22: 0 | Z22: 0 | AA22: 0 | AB22: 0 | AC22: 0 | AD22: 0 | AE22: 0 | AF22: 0 | AG22: 0 | AH22: 0 | AI22: 0 | AJ22: 0 | AK22: 0 | AL22: 0 | AM22: 0 | AN22: 0 | AO22: 0 | AP22: 0 | AQ22: 0 | AR22: 0 | AS22: 0 | AT22: 0 | AU22: 0 | AV22: 0 | AW22: 0 | AX22: 0 | AY22: 0 | AZ22: 0 | BA22: 0 | BB22: 0 | BC22: 0 | BD22: 0 | BE22: 0 | BF22: 0 | BG22: 0 | BH22: 0 | BI22: 0 | BJ22: 0 | BK22: 0 | BL22: 0 | BM22: 0 | BN22: 0 | BO22: 0 | BP22: 0 | BQ22: 0 | BR22: 0 | BS22: 0
C23: 0.034101978 | D23: 0.036473449 | E23: 0.03900827 | F23: 0.041717471 | G23: 0.044612798 | H23: 0.047706754 | I23: 0.05101264 | J23: 0.054544606 | K23: 0.058317694 | L23: 0.06234789 | M23: 0.066652177 | N23: 0.071248584 | O23: 0.076156246 | P23: 0.081395457 | Q23: 0.08698773 | R23: 0.092955858 | S23: 0.099323971 | T23: 0.1061176 | U23: 0.11336375 | V23: 0.12109093 | W23: 0.12932925 | X23: 0.1381105 | Y23: 0.14746814 | Z23: 0 | AA23: 0 | AB23: 0 | AC23: 0 | AD23: 0 | AE23: 0 | AF23: 0 | AG23: 0 | AH23: 0 | AI23: 0 | AJ23: 0 | AK23: 0 | AL23: 0 | AM23: 0 | AN23: 0 | AO23: 0 | AP23: 0 | AQ23: 0 | AR23: 0 | AS23: 0 | AT23: 0 | AU23: 0 | AV23: 0 | AW23: 0 | AX23: 0 | AY23: 0 | AZ23: 0 | BA23: 0 | BB23: 0 | BC23: 0 | BD23: 0 | BE23: 0 | BF23: 0 | BG23: 0 | BH23: 0 | BI23: 0 | BJ23: 0 | BK23: 0 | BL23: 0 | BM23: 0 | BN23: 0 | BO23: 0 | BP23: 0 | BQ23: 0 | BR23: 0 | BS23: 0
C24: 0.033350869 | D24: 0.03567231 | E24: 0.038153838 | F24: 0.040806283 | G24: 0.043641174 | H24: 0.046670788 | I24: 0.049908187 | J24: 0.05336727 | K24: 0.057062813 | L24: 0.061010525 | M24: 0.065227095 | N24: 0.069730246 | O24: 0.074538789 | P24: 0.079672682 | Q24: 0.085153086 | R24: 0.091002423 | S24: 0.097244442 | T24: 0.10390427 | U24: 0.1110085 | V24: 0.11858521 | W24: 0.12666407 | X24: 0.13527638 | Y24: 0.14445515 | Z24: 0.15423515 | AA24: 0 | AB24: 0 | AC24: 0 | AD24: 0 | AE24: 0 | AF24: 0 | AG24: 0 | AH24: 0 | AI24: 0 | AJ24: 0 | AK24: 0 | AL24: 0 | AM24: 0 | AN24: 0 | AO24: 0 | AP24: 0 | AQ24: 0 | AR24: 0 | AS24: 0 | AT24: 0 | AU24: 0 | AV24: 0 | AW24: 0 | AX24: 0 | AY24: 0 | AZ24: 0 | BA24: 0 | BB24: 0 | BC24: 0 | BD24: 0 | BE24: 0 | BF24: 0 | BG24: 0 | BH24: 0 | BI24: 0 | BJ24: 0 | BK24: 0 | BL24: 0 | BM24: 0 | BN24: 0 | BO24: 0 | BP24: 0 | BQ24: 0 | BR24: 0 | BS24: 0
C25: 0.032544641 | D25: 0.034812214 | E25: 0.037236348 | F25: 0.039827653 | G25: 0.042597426 | H25: 0.045557695 | I25: 0.048721265 | J25: 0.052101759 | K25: 0.055713666 | L25: 0.05957239 | M25: 0.063694302 | N25: 0.068096788 | O25: 0.07279831 | P25: 0.077818455 | Q25: 0.083178 | R25: 0.088898964 | S25: 0.095004674 | T25: 0.10151982 | U25: 0.10847054 | V25: 0.11588443 | W25: 0.12379068 | X25: 0.13222008 | Y25: 0.1412051 | Z25: 0.15077999 | AA25: 0.16098078 | AB25: 0 | AC25: 0 | AD25: 0 | AE25: 0 | AF25: 0 | AG25: 0 | AH25: 0 | AI25: 0 | AJ25: 0 | AK25: 0 | AL25: 0 | AM25: 0 | AN25: 0 | AO25: 0 | AP25: 0 | AQ25: 0 | AR25: 0 | AS25: 0 | AT25: 0 | AU25: 0 | AV25: 0 | AW25: 0 | AX25: 0 | AY25: 0 | AZ25: 0 | BA25: 0 | BB25: 0 | BC25: 0 | BD25: 0 | BE25: 0 | BF25: 0 | BG25: 0 | BH25: 0 | BI25: 0 | BJ25: 0 | BK25: 0 | BL25: 0 | BM25: 0 | BN25: 0 | BO25: 0 | BP25: 0 | BQ25: 0 | BR25: 0 | BS25: 0
C26: 0.031692181 | D26: 0.033902645 | E26: 0.036265922 | F26: 0.038792383 | G26: 0.041493078 | H26: 0.044379771 | I26: 0.047464989 | J26: 0.050762062 | K26: 0.054285169 | L26: 0.05804939 | M26: 0.062070752 | N26: 0.066366283 | O26: 0.070954066 | P26: 0.075853294 | Q26: 0.081084327 | R26: 0.086668753 | S26: 0.092629445 | T26: 0.098990624 | U26: 0.10577792 | V26: 0.11301845 | W26: 0.12074084 | X26: 0.12897534 | Y26: 0.13775388 | Z26: 0.14711008 | AA26: 0.15707938 | AB26: 0.16769906 | AC26: 0 | AD26: 0 | AE26: 0 | AF26: 0 | AG26: 0 | AH26: 0 | AI26: 0 | AJ26: 0 | AK26: 0 | AL26: 0 | AM26: 0 | AN26: 0 | AO26: 0 | AP26: 0 | AQ26: 0 | AR26: 0 | AS26: 0 | AT26: 0 | AU26: 0 | AV26: 0 | AW26: 0 | AX26: 0 | AY26: 0 | AZ26: 0 | BA26: 0 | BB26: 0 | BC26: 0 | BD26: 0 | BE26: 0 | BF26: 0 | BG26: 0 | BH26: 0 | BI26: 0 | BJ26: 0 | BK26: 0 | BL26: 0 | BM26: 0 | BN26: 0 | BO26: 0 | BP26: 0 | BQ26: 0 | BR26: 0 | BS26: 0
C27: 0.030801573 | D27: 0.032952232 | E27: 0.035251767 | F27: 0.0377103 | G27: 0.040338616 | H27: 0.043148202 | I27: 0.046151292 | J27: 0.049360904 | K27: 0.052790892 | L27: 0.056455992 | M27: 0.060371868 | N27: 0.064555168 | O27: 0.069023574 | P27: 0.07379586 | Q27: 0.078891946 | R27: 0.08433296 | S27: 0.090141293 | T27: 0.096340665 | U27: 0.10295618 | V27: 0.11001441 | W27: 0.11754343 | X27: 0.12557289 | Y27: 0.1341341 | Z27: 0.14326008 | AA27: 0.1529856 | AB27: 0.1633473 | AC27: 0.17438368 | AD27: 0 | AE27: 0 | AF27: 0 | AG27: 0 | AH27: 0 | AI27: 0 | AJ27: 0 | AK27: 0 | AL27: 0 | AM27: 0 | AN27: 0 | AO27: 0 | AP27: 0 | AQ27: 0 | AR27: 0 | AS27: 0 | AT27: 0 | AU27: 0 | AV27: 0 | AW27: 0 | AX27: 0 | AY27: 0 | AZ27: 0 | BA27: 0 | BB27: 0 | BC27: 0 | BD27: 0 | BE27: 0 | BF27: 0 | BG27: 0 | BH27: 0 | BI27: 0 | BJ27: 0 | BK27: 0 | BL27: 0 | BM27: 0 | BN27: 0 | BO27: 0 | BP27: 0 | BQ27: 0 | BR27: 0 | BS27: 0
C28: 0.029880162 | D28: 0.031968817 | E28: 0.034202252 | F28: 0.036590332 | G28: 0.039143565 | H28: 0.04187315 | I28: 0.044791012 | J28: 0.047909847 | K28: 0.051243165 | L28: 0.054805343 | M28: 0.058611665 | N28: 0.06267838 | O28: 0.067022751 | P28: 0.071663112 | Q28: 0.076618921 | R28: 0.081910822 | S28: 0.087560701 | T28: 0.09359175 | U28: 0.10002852 | V28: 0.10689701 | W28: 0.1142247 | X28: 0.12204062 | Y28: 0.13037545 | Z28: 0.13926152 | AA28: 0.14873294 | AB28: 0.15882562 | AC28: 0.16957737 | AD28: 0.1810279 | AE28: 0 | AF28: 0 | AG28: 0 | AH28: 0 | AI28: 0 | AJ28: 0 | AK28: 0 | AL28: 0 | AM28: 0 | AN28: 0 | AO28: 0 | AP28: 0 | AQ28: 0 | AR28: 0 | AS28: 0 | AT28: 0 | AU28: 0 | AV28: 0 | AW28: 0 | AX28: 0 | AY28: 0 | AZ28: 0 | BA28: 0 | BB28: 0 | BC28: 0 | BD28: 0 | BE28: 0 | BF28: 0 | BG28: 0 | BH28: 0 | BI28: 0 | BJ28: 0 | BK28: 0 | BL28: 0 | BM28: 0 | BN28: 0 | BO28: 0 | BP28: 0 | BQ28: 0 | BR28: 0 | BS28: 0
C29: 0.028934612 | D29: 0.030959509 | E29: 0.033124966 | F29: 0.035440578 | G29: 0.037916569 | H29: 0.040563836 | I29: 0.043393987 | J29: 0.046419382 | K29: 0.049653176 | L29: 0.053109372 | M29: 0.056802861 | N29: 0.060749477 | O29: 0.064966047 | P29: 0.069470446 | Q29: 0.074281653 | R29: 0.079419808 | S29: 0.08490627 | T29: 0.090763679 | U29: 0.097016018 | V29: 0.10368867 | W29: 0.11080851 | X29: 0.11840391 | Y29: 0.12650487 | Z29: 0.13514304 | AA29: 0.14435181 | AB29: 0.15416635 | AC29: 0.16462369 | AD29: 0.17576277 | AE29: 0.18762453 | AF29: 0 | AG29: 0 | AH29: 0 | AI29: 0 | AJ29: 0 | AK29: 0 | AL29: 0 | AM29: 0 | AN29: 0 | AO29: 0 | AP29: 0 | AQ29: 0 | AR29: 0 | AS29: 0 | AT29: 0 | AU29: 0 | AV29: 0 | AW29: 0 | AX29: 0 | AY29: 0 | AZ29: 0 | BA29: 0 | BB29: 0 | BC29: 0 | BD29: 0 | BE29: 0 | BF29: 0 | BG29: 0 | BH29: 0 | BI29: 0 | BJ29: 0 | BK29: 0 | BL29: 0 | BM29: 0 | BN29: 0 | BO29: 0 | BP29: 0 | BQ29: 0 | BR29: 0 | BS29: 0
C30: 0.027970956 | D30: 0.029930751 | E30: 0.032026784 | F30: 0.034268375 | G30: 0.036665455 | H30: 0.039228613 | I30: 0.041969128 | J30: 0.044899014 | K30: 0.048031063 | L30: 0.051378891 | M30: 0.054956983 | N30: 0.058780746 | O30: 0.062866557 | P30: 0.067231818 | Q30: 0.071895012 | R30: 0.076875757 | S30: 0.082194867 | T30: 0.087874413 | U30: 0.09393778 | V30: 0.10040974 | W30: 0.10731649 | X30: 0.11468576 | Y30: 0.12254684 | Z30: 0.13093066 | AA30: 0.13986986 | AB30: 0.14939883 | AC30: 0.15955381 | AD30: 0.17037292 | AE30: 0.18189626 | AF30: 0.1941659 | AG30: 0 | AH30: 0 | AI30: 0 | AJ30: 0 | AK30: 0 | AL30: 0 | AM30: 0 | AN30: 0 | AO30: 0 | AP30: 0 | AQ30: 0 | AR30: 0 | AS30: 0 | AT30: 0 | AU30: 0 | AV30: 0 | AW30: 0 | AX30: 0 | AY30: 0 | AZ30: 0 | BA30: 0 | BB30: 0 | BC30: 0 | BD30: 0 | BE30: 0 | BF30: 0 | BG30: 0 | BH30: 0 | BI30: 0 | BJ30: 0 | BK30: 0 | BL30: 0 | BM30: 0 | BN30: 0 | BO30: 0 | BP30: 0 | BQ30: 0 | BR30: 0 | BS30: 0
C31: 0.02699465 | D31: 0.028888365 | E31: 0.030913921 | F31: 0.033080356 | G31: 0.035397304 | H31: 0.037875035 | I31: 0.040524494 | J31: 0.043357342 | K31: 0.046385997 | L31: 0.049623681 | M31: 0.053084462 | N31: 0.056783308 | O31: 0.060736137 | P31: 0.064959863 | Q31: 0.069472461 | R31: 0.074293012 | S31: 0.079441772 | T31: 0.084940221 | U31: 0.090811133 | V31: 0.097078633 | W31: 0.10376826 | X31: 0.11090705 | Y31: 0.11852356 | Z31: 0.12664798 | AA31: 0.13531216 | AB31: 0.1445497 | AC31: 0.15439601 | AD31: 0.16488837 | AE31: 0.17606599 | AF31: 0.18797007 | AG31: 0.20064384 | AH31: 0 | AI31: 0 | AJ31: 0 | AK31: 0 | AL31: 0 | AM31: 0 | AN31: 0 | AO31: 0 | AP31: 0 | AQ31: 0 | AR31: 0 | AS31: 0 | AT31: 0 | AU31: 0 | AV31: 0 | AW31: 0 | AX31: 0 | AY31: 0 | AZ31: 0 | BA31: 0 | BB31: 0 | BC31: 0 | BD31: 0 | BE31: 0 | BF31: 0 | BG31: 0 | BH31: 0 | BI31: 0 | BJ31: 0 | BK31: 0 | BL31: 0 | BM31: 0 | BN31: 0 | BO31: 0 | BP31: 0 | BQ31: 0 | BR31: 0 | BS31: 0
C32: 0.026010614 | D32: 0.027837603 | E32: 0.029791985 | F32: 0.031882508 | G32: 0.034118503 | H32: 0.036509919 | I32: 0.03906736 | J32: 0.041802128 | K32: 0.04472626 | L32: 0.047852574 | M32: 0.051194717 | N32: 0.05476721 | O32: 0.058585497 | P32: 0.062666 | Q32: 0.067026169 | R32: 0.071684543 | S32: 0.076660799 | T32: 0.081975819 | U32: 0.087651748 | V32: 0.093712053 | W32: 0.10018159 | X32: 0.10708667 | Y32: 0.11445512 | Z32: 0.12231635 | AA32: 0.13070142 | AB32: 0.1396431 | AC32: 0.14917595 | AD32: 0.15933636 | AE32: 0.17016264 | AF32: 0.18169507 | AG32: 0.19397593 | AH32: 0.20704961 | AI32: 0 | AJ32: 0 | AK32: 0 | AL32: 0 | AM32: 0 | AN32: 0 | AO32: 0 | AP32: 0 | AQ32: 0 | AR32: 0 | AS32: 0 | AT32: 0 | AU32: 0 | AV32: 0 | AW32: 0 | AX32: 0 | AY32: 0 | AZ32: 0 | BA32: 0 | BB32: 0 | BC32: 0 | BD32: 0 | BE32: 0 | BF32: 0 | BG32: 0 | BH32: 0 | BI32: 0 | BJ32: 0 | BK32: 0 | BL32: 0 | BM32: 0 | BN32: 0 | BO32: 0 | BP32: 0 | BQ32: 0 | BR32: 0 | BS32: 0
C33: 0.025023274 | D33: 0.026783194 | E33: 0.028666022 | F33: 0.030680218 | G33: 0.032834804 | H33: 0.035139405 | I33: 0.03760428 | J33: 0.040240365 | K33: 0.043059312 | L33: 0.046073533 | M33: 0.049296242 | N33: 0.052741508 | O33: 0.056424297 | P33: 0.060360527 | Q33: 0.064567118 | R33: 0.069062051 | S33: 0.073864421 | T33: 0.078994496 | U33: 0.084473779 | V33: 0.090325068 | W33: 0.096572518 | X33: 0.10324171 | Y33: 0.11035971 | Z33: 0.11795513 | AA33: 0.12605822 | AB33: 0.13470091 | AC33: 0.14391686 | AD33: 0.15374157 | AE33: 0.16421242 | AF33: 0.17536872 | AG33: 0.18725178 | AH33: 0.199905 | AI33: 0.21337386 | AJ33: 0 | AK33: 0 | AL33: 0 | AM33: 0 | AN33: 0 | AO33: 0 | AP33: 0 | AQ33: 0 | AR33: 0 | AS33: 0 | AT33: 0 | AU33: 0 | AV33: 0 | AW33: 0 | AX33: 0 | AY33: 0 | AZ33: 0 | BA33: 0 | BB33: 0 | BC33: 0 | BD33: 0 | BE33: 0 | BF33: 0 | BG33: 0 | BH33: 0 | BI33: 0 | BJ33: 0 | BK33: 0 | BL33: 0 | BM33: 0 | BN33: 0 | BO33: 0 | BP33: 0 | BQ33: 0 | BR33: 0 | BS33: 0
C34: 0.024036607 | D34: 0.025729382 | E34: 0.027540566 | F34: 0.029478326 | G34: 0.031551376 | H34: 0.033769011 | I34: 0.036141142 | J34: 0.038678339 | K34: 0.041391863 | L34: 0.044293715 | M34: 0.047396675 | N34: 0.050714353 | O34: 0.05426123 | P34: 0.058052715 | Q34: 0.062105192 | R34: 0.066436077 | S34: 0.071063873 | T34: 0.076008226 | U34: 0.081289986 | V34: 0.08693127 | W34: 0.092955522 | X34: 0.099387575 | Y34: 0.10625372 | Z34: 0.11358178 | AA34: 0.12140114 | AB34: 0.12974287 | AC34: 0.13863974 | AD34: 0.14812632 | AE34: 0.15823903 | AF34: 0.16901621 | AG34: 0.18049815 | AH34: 0.19272721 | AI34: 0.20574783 | AJ34: 0.2196066 | AK34: 0 | AL34: 0 | AM34: 0 | AN34: 0 | AO34: 0 | AP34: 0 | AQ34: 0 | AR34: 0 | AS34: 0 | AT34: 0 | AU34: 0 | AV34: 0 | AW34: 0 | AX34: 0 | AY34: 0 | AZ34: 0 | BA34: 0 | BB34: 0 | BC34: 0 | BD34: 0 | BE34: 0 | BF34: 0 | BG34: 0 | BH34: 0 | BI34: 0 | BJ34: 0 | BK34: 0 | BL34: 0 | BM34: 0 | BN34: 0 | BO34: 0 | BP34: 0 | BQ34: 0 | BR34: 0 | BS34: 0
C35: 0.023054167 | D35: 0.024679966 | E35: 0.026419675 | F35: 0.028281167 | G35: 0.030272846 | H35: 0.032403677 | I35: 0.034683223 | J35: 0.037121682 | K35: 0.039729925 | L35: 0.042519539 | M35: 0.045502867 | N35: 0.048693054 | O35: 0.052104096 | P35: 0.055750887 | Q35: 0.05964927 | R35: 0.063816091 | S35: 0.068269253 | T35: 0.073027774 | U35: 0.078111845 | V35: 0.083542891 | W35: 0.089343634 | X35: 0.095538152 | Y35: 0.10215195 | Z35: 0.10921202 | AA35: 0.11674692 | AB35: 0.12478681 | AC35: 0.13336356 | AD35: 0.14251079 | AE35: 0.15226393 | AF35: 0.16266031 | AG35: 0.17373922 | AH35: 0.18554193 | AI35: 0.19811181 | AJ35: 0.21149433 | AK35: 0.22573717 | AL35: 0 | AM35: 0 | AN35: 0 | AO35: 0 | AP35: 0 | AQ35: 0 | AR35: 0 | AS35: 0 | AT35: 0 | AU35: 0 | AV35: 0 | AW35: 0 | AX35: 0 | AY35: 0 | AZ35: 0 | BA35: 0 | BB35: 0 | BC35: 0 | BD35: 0 | BE35: 0 | BF35: 0 | BG35: 0 | BH35: 0 | BI35: 0 | BJ35: 0 | BK35: 0 | BL35: 0 | BM35: 0 | BN35: 0 | BO35: 0 | BP35: 0 | BQ35: 0 | BR35: 0 | BS35: 0
C36: 0.022079129 | D36: 0.023638336 | E36: 0.025306969 | F36: 0.027092608 | G36: 0.029003346 | H36: 0.031047817 | I36: 0.033235236 | J36: 0.035575429 | K36: 0.038078875 | L36: 0.040756745 | M36: 0.043620944 | N36: 0.046684153 | O36: 0.049959878 | P36: 0.053462495 | Q36: 0.057207304 | R36: 0.061210576 | S36: 0.065489612 | T36: 0.070062795 | U36: 0.074949651 | V36: 0.080170908 | W36: 0.085748557 | X36: 0.091705913 | Y36: 0.098067684 | Z36: 0.10486003 | AA36: 0.11211064 | AB36: 0.11984879 | AC36: 0.1281054 | AD36: 0.13691314 | AE36: 0.14630643 | AF36: 0.15632159 | AG36: 0.16699684 | AH36: 0.17837236 | AI36: 0.19049042 | AJ36: 0.20339537 | AK36: 0.2171337 | AL36: 0.23175412 | AM36: 0 | AN36: 0 | AO36: 0 | AP36: 0 | AQ36: 0 | AR36: 0 | AS36: 0 | AT36: 0 | AU36: 0 | AV36: 0 | AW36: 0 | AX36: 0 | AY36: 0 | AZ36: 0 | BA36: 0 | BB36: 0 | BC36: 0 | BD36: 0 | BE36: 0 | BF36: 0 | BG36: 0 | BH36: 0 | BI36: 0 | BJ36: 0 | BK36: 0 | BL36: 0 | BM36: 0 | BN36: 0 | BO36: 0 | BP36: 0 | BQ36: 0 | BR36: 0 | BS36: 0
C37: 0.021114309 | D37: 0.022607503 | E37: 0.024205666 | F37: 0.025916088 | G37: 0.02774655 | H37: 0.029705358 | I37: 0.031801376 | J37: 0.034044061 | K37: 0.036443499 | L37: 0.039010447 | M37: 0.041756369 | N37: 0.044693483 | O37: 0.047834804 | P37: 0.05119419 | Q37: 0.054786393 | R37: 0.058627111 | S37: 0.062733038 | T37: 0.06712192 | U37: 0.071812614 | V37: 0.076825145 | W37: 0.082180769 | X37: 0.087902031 | Y37: 0.094012835 | Z37: 0.1005385 | AA37: 0.10750584 | AB37: 0.11494322 | AC37: 0.12288063 | AD37: 0.13134973 | AE37: 0.14038395 | AF37: 0.15001857 | AG37: 0.1602907 | AH37: 0.17123946 | AI37: 0.18290594 | AJ37: 0.19533335 | AK37: 0.208567 | AL37: 0.22265438 | AM37: 0.23764526 | AN37: 0 | AO37: 0 | AP37: 0 | AQ37: 0 | AR37: 0 | AS37: 0 | AT37: 0 | AU37: 0 | AV37: 0 | AW37: 0 | AX37: 0 | AY37: 0 | AZ37: 0 | BA37: 0 | BB37: 0 | BC37: 0 | BD37: 0 | BE37: 0 | BF37: 0 | BG37: 0 | BH37: 0 | BI37: 0 | BJ37: 0 | BK37: 0 | BL37: 0 | BM37: 0 | BN37: 0 | BO37: 0 | BP37: 0 | BQ37: 0 | BR37: 0 | BS37: 0
C38: 0.020162201 | D38: 0.021590131 | E38: 0.023118615 | F38: 0.024754652 | G38: 0.026505713 | H38: 0.028379777 | I38: 0.030385361 | J38: 0.032531551 | K38: 0.034828044 | L38: 0.037285182 | M38: 0.039913991 | N38: 0.042726225 | O38: 0.045734408 | P38: 0.048951881 | Q38: 0.052392852 | R38: 0.05607244 | S38: 0.060006733 | T38: 0.064212838 | U38: 0.068708943 | V38: 0.073514365 | W38: 0.078649623 | X38: 0.084136486 | Y38: 0.089998049 | Z38: 0.096258787 | AA38: 0.10294463 | AB38: 0.11008302 | AC38: 0.11770299 | AD38: 0.12583522 | AE38: 0.13451211 | AF38: 0.14376786 | AG38: 0.15363852 | AH38: 0.16416205 | AI38: 0.17537841 | AJ38: 0.18732959 | AK38: 0.20005972 | AL38: 0.21361505 | AM38: 0.22804406 | AN38: 0.24339751 | AO38: 0 | AP38: 0 | AQ38: 0 | AR38: 0 | AS38: 0 | AT38: 0 | AU38: 0 | AV38: 0 | AW38: 0 | AX38: 0 | AY38: 0 | AZ38: 0 | BA38: 0 | BB38: 0 | BC38: 0 | BD38: 0 | BE38: 0 | BF38: 0 | BG38: 0 | BH38: 0 | BI38: 0 | BJ38: 0 | BK38: 0 | BL38: 0 | BM38: 0 | BN38: 0 | BO38: 0 | BP38: 0 | BQ38: 0 | BR38: 0 | BS38: 0
C39: 0.019224996 | D39: 0.020588566 | E39: 0.022048325 | F39: 0.023610982 | G39: 0.025283704 | H39: 0.027074143 | I39: 0.02899047 | J39: 0.031041406 | K39: 0.033236259 | L39: 0.035584958 | M39: 0.038098094 | N39: 0.040786957 | O39: 0.043663586 | P39: 0.046740804 | Q39: 0.050032273 | R39: 0.053552539 | S39: 0.057317083 | T39: 0.061342374 | U39: 0.065645926 | V39: 0.070246354 | W39: 0.075163433 | X39: 0.080418158 | Y39: 0.086032808 | Z39: 0.092031009 | AA39: 0.098437801 | AB39: 0.1052797 | AC39: 0.11258478 | AD39: 0.12038272 | AE39: 0.12870488 | AF39: 0.13758439 | AG39: 0.14705617 | AH39: 0.15715706 | AI39: 0.16792583 | AJ39: 0.17940327 | AK39: 0.19163225 | AL39: 0.20465779 | AM39: 0.21852707 | AN39: 0.23328954 | AO39: 0.24899692 | AP39: 0 | AQ39: 0 | AR39: 0 | AS39: 0 | AT39: 0 | AU39: 0 | AV39: 0 | AW39: 0 | AX39: 0 | AY39: 0 | AZ39: 0 | BA39: 0 | BB39: 0 | BC39: 0 | BD39: 0 | BE39: 0 | BF39: 0 | BG39: 0 | BH39: 0 | BI39: 0 | BJ39: 0 | BK39: 0 | BL39: 0 | BM39: 0 | BN39: 0 | BO39: 0 | BP39: 0 | BQ39: 0 | BR39: 0 | BS39: 0
C40: 0.018304613 | D40: 0.019604859 | E40: 0.020996989 | F40: 0.022487427 | G40: 0.024083035 | H40: 0.025791143 | I40: 0.02761958 | J40: 0.029576704 | K40: 0.031671436 | L40: 0.033913297 | M40: 0.036312444 | N40: 0.03887971 | O40: 0.041626647 | P40: 0.044565566 | Q40: 0.047709586 | R40: 0.051072679 | S40: 0.054669724 | T40: 0.058516552 | U40: 0.062630007 | V40: 0.067027999 | W40: 0.071729562 | X40: 0.076754913 | Y40: 0.082125517 | Z40: 0.087864148 | AA40: 0.093994954 | AB40: 0.10054352 | AC40: 0.10753695 | AD40: 0.11500392 | AE40: 0.12297474 | AF40: 0.13148144 | AG40: 0.14055785 | AH40: 0.15023962 | AI40: 0.16056433 | AJ40: 0.17157156 | AK40: 0.18330292 | AL40: 0.19580211 | AM40: 0.20911504 | AN40: 0.22328979 | AO40: 0.23837674 | AP40: 0.25442857 | AQ40: 0 | AR40: 0 | AS40: 0 | AT40: 0 | AU40: 0 | AV40: 0 | AW40: 0 | AX40: 0 | AY40: 0 | AZ40: 0 | BA40: 0 | BB40: 0 | BC40: 0 | BD40: 0 | BE40: 0 | BF40: 0 | BG40: 0 | BH40: 0 | BI40: 0 | BJ40: 0 | BK40: 0 | BL40: 0 | BM40: 0 | BN40: 0 | BO40: 0 | BP40: 0 | BQ40: 0 | BR40: 0 | BS40: 0
C41: 0.017402715 | D41: 0.018640792 | E41: 0.019966516 | F41: 0.021386028 | G41: 0.022905891 | H41: 0.024533117 | I41: 0.026275196 | J41: 0.028140125 | K41: 0.030136444 | L41: 0.03227327 | M41: 0.034560331 | N41: 0.037008004 | O41: 0.039627361 | P41: 0.042430201 | Q41: 0.045429107 | R41: 0.048637482 | S41: 0.052069601 | T41: 0.055740664 | U41: 0.059666848 | V41: 0.063865358 | W41: 0.06835449 | X41: 0.073153686 | Y41: 0.078283595 | Z41: 0.083766138 | AA41: 0.08962457 | AB41: 0.095883549 | AC41: 0.1025692 | AD41: 0.10970918 | AE41: 0.11733275 | AF41: 0.12547086 | AG41: 0.13415618 | AH41: 0.14342321 | AI41: 0.15330832 | AJ41: 0.16384984 | AK41: 0.17508809 | AL41: 0.18706549 | AM41: 0.19982658 | AN41: 0.21341809 | AO41: 0.227889 | AP41: 0.24329061 | AQ41: 0.25967652 | AR41: 0 | AS41: 0 | AT41: 0 | AU41: 0 | AV41: 0 | AW41: 0 | AX41: 0 | AY41: 0 | AZ41: 0 | BA41: 0 | BB41: 0 | BC41: 0 | BD41: 0 | BE41: 0 | BF41: 0 | BG41: 0 | BH41: 0 | BI41: 0 | BJ41: 0 | BK41: 0 | BL41: 0 | BM41: 0 | BN41: 0 | BO41: 0 | BP41: 0 | BQ41: 0 | BR41: 0 | BS41: 0
C42: 0.016520734 | D42: 0.017697898 | E42: 0.018958547 | F42: 0.020308545 | G42: 0.021754159 | H42: 0.023302086 | I42: 0.024959481 | J42: 0.026733988 | K42: 0.028633769 | L42: 0.030667541 | M42: 0.032844606 | N42: 0.035174895 | O42: 0.037668999 | P42: 0.040338216 | Q42: 0.043194593 | R42: 0.046250969 | S42: 0.049521024 | T42: 0.053019328 | U42: 0.056761394 | V42: 0.060763728 | W42: 0.065043891 | X42: 0.069620551 | Y42: 0.074513546 | Z42: 0.079743944 | AA42: 0.085334109 | AB42: 0.091307764 | AC42: 0.097690059 | AD42: 0.10450764 | AE42: 0.11178871 | AF42: 0.1195631 | AG42: 0.12786237 | AH42: 0.13671982 | AI42: 0.1461706 | AJ42: 0.15625178 | AK42: 0.16700239 | AL42: 0.17846352 | AM42: 0.19067834 | AN42: 0.2036922 | AO42: 0.21755267 | AP42: 0.23230958 | AQ42: 0.2480151 | AR42: 0.26472374 | AS42: 0 | AT42: 0 | AU42: 0 | AV42: 0 | AW42: 0 | AX42: 0 | AY42: 0 | AZ42: 0 | BA42: 0 | BB42: 0 | BC42: 0 | BD42: 0 | BE42: 0 | BF42: 0 | BG42: 0 | BH42: 0 | BI42: 0 | BJ42: 0 | BK42: 0 | BL42: 0 | BM42: 0 | BN42: 0 | BO42: 0 | BP42: 0 | BQ42: 0 | BR42: 0 | BS42: 0
C43: 0.015659887 | D43: 0.016777483 | E43: 0.017974484 | F43: 0.019256481 | G43: 0.020629449 | H43: 0.022099776 | I43: 0.023674288 | J43: 0.025360279 | K43: 0.02716554 | L43: 0.029098391 | M43: 0.031167719 | N43: 0.033383007 | O43: 0.035754378 | P43: 0.038292631 | Q43: 0.041009283 | R43: 0.043916616 | S43: 0.047027719 | T43: 0.050356539 | U43: 0.05391793 | V43: 0.057727706 | W43: 0.061802694 | X43: 0.066160795 | Y43: 0.070821038 | Z43: 0.075803643 | AA43: 0.081130085 | AB43: 0.086823154 | AC43: 0.092907026 | AD43: 0.099407327 | AE43: 0.1063512 | AF43: 0.11376739 | AG43: 0.12168629 | AH43: 0.13014001 | AI43: 0.13916248 | AJ43: 0.1487895 | AK43: 0.15905878 | AL43: 0.17001007 | AM43: 0.18168516 | AN43: 0.19412798 | AO43: 0.20738466 | AP43: 0.22150357 | AQ43: 0.23653536 | AR43: 0.25253307 | AS43: 0.26955207 | AT43: 0 | AU43: 0 | AV43: 0 | AW43: 0 | AX43: 0 | AY43: 0 | AZ43: 0 | BA43: 0 | BB43: 0 | BC43: 0 | BD43: 0 | BE43: 0 | BF43: 0 | BG43: 0 | BH43: 0 | BI43: 0 | BJ43: 0 | BK43: 0 | BL43: 0 | BM43: 0 | BN43: 0 | BO43: 0 | BP43: 0 | BQ43: 0 | BR43: 0 | BS43: 0
C44: 0.014821197 | D44: 0.015880645 | E44: 0.017015505 | F44: 0.0182311 | G44: 0.019533119 | H44: 0.020927645 | I44: 0.022421182 | J44: 0.024020678 | K44: 0.02573356 | L44: 0.027567759 | M44: 0.029531748 | N44: 0.031634575 | O44: 0.033885897 | P44: 0.03629602 | Q44: 0.038875942 | R44: 0.041637392 | S44: 0.044592875 | T44: 0.047755722 | U44: 0.051140135 | V44: 0.05476124 | W44: 0.058635141 | X44: 0.062778974 | Y44: 0.067210965 | Z44: 0.071950492 | AA44: 0.077018142 | AB44: 0.082435778 | AC44: 0.088226605 | AD44: 0.094415233 | AE44: 0.10102775 | AF44: 0.10809178 | AG44: 0.11563657 | AH44: 0.12369306 | AI44: 0.13229392 | AJ44: 0.14147366 | AK44: 0.1512687 | AL44: 0.1617174 | AM44: 0.17286017 | AN44: 0.1847395 | AO44: 0.19740005 | AP44: 0.21088869 | AQ44: 0.22525456 | AR44: 0.24054913 | AS44: 0.25682624 | AT44: 0.27414213 | AU44: 0 | AV44: 0 | AW44: 0 | AX44: 0 | AY44: 0 | AZ44: 0 | BA44: 0 | BB44: 0 | BC44: 0 | BD44: 0 | BE44: 0 | BF44: 0 | BG44: 0 | BH44: 0 | BI44: 0 | BJ44: 0 | BK44: 0 | BL44: 0 | BM44: 0 | BN44: 0 | BO44: 0 | BP44: 0 | BQ44: 0 | BR44: 0 | BS44: 0
C45: 0.014005508 | D45: 0.015008289 | E45: 0.016082583 | F45: 0.017233448 | G45: 0.018466293 | H45: 0.019786903 | I45: 0.021201463 | J45: 0.022716584 | K45: 0.024339334 | L45: 0.026077261 | M45: 0.027938434 | N45: 0.029931469 | O45: 0.032065566 | P45: 0.034350549 | Q45: 0.036796899 | R45: 0.039415801 | S45: 0.042219187 | T45: 0.045219777 | U45: 0.048431128 | V45: 0.051867688 | W45: 0.055544843 | X45: 0.059478973 | Y45: 0.063687509 | Z45: 0.068188989 | AA45: 0.073003123 | AB45: 0.078150849 | AC45: 0.083654404 | AD45: 0.089537387 | AE45: 0.095824824 | AF45: 0.10254324 | AG45: 0.10972073 | AH45: 0.11738703 | AI45: 0.12557359 | AJ45: 0.13431361 | AK45: 0.14364218 | AL45: 0.1535963 | AM45: 0.16421496 | AN45: 0.17553919 | AO45: 0.18761217 | AP45: 0.20047925 | AQ45: 0.21418802 | AR45: 0.22878837 | AS45: 0.24433253 | AT45: 0.26087514 | AU45: 0.27847325 | AV45: 0 | AW45: 0 | AX45: 0 | AY45: 0 | AZ45: 0 | BA45: 0 | BB45: 0 | BC45: 0 | BD45: 0 | BE45: 0 | BF45: 0 | BG45: 0 | BH45: 0 | BI45: 0 | BJ45: 0 | BK45: 0 | BL45: 0 | BM45: 0 | BN45: 0 | BO45: 0 | BP45: 0 | BQ45: 0 | BR45: 0 | BS45: 0
C46: 0.013213497 | D46: 0.014161148 | E46: 0.015176507 | F46: 0.016264374 | G46: 0.017429886 | H46: 0.018678534 | I46: 0.020016192 | J46: 0.02144914 | K46: 0.022984093 | L46: 0.024628225 | M46: 0.026389206 | N46: 0.02827523 | O46: 0.030295048 | P46: 0.032458006 | Q46: 0.034774082 | R46: 0.037253925 | S46: 0.039908898 | T46: 0.042751121 | U46: 0.045793517 | V46: 0.049049862 | W46: 0.052534834 | X46: 0.056264065 | Y46: 0.060254197 | Z46: 0.06452294 | AA46: 0.069089131 | AB46: 0.073972792 | AC46: 0.079195199 | AD46: 0.084778941 | AE46: 0.090747991 | AF46: 0.097127776 | AG46: 0.10394524 | AH46: 0.11122891 | AI46: 0.119009 | AJ46: 0.12731744 | AK46: 0.13618796 | AL46: 0.14565617 | AM46: 0.15575965 | AN46: 0.16653796 | AO46: 0.17803277 | AP46: 0.19028788 | AQ46: 0.20334931 | AR46: 0.21726535 | AS46: 0.23208659 | AT46: 0.24786602 | AU46: 0.26465902 | AV46: 0.28252342 | AW46: 0 | AX46: 0 | AY46: 0 | AZ46: 0 | BA46: 0 | BB46: 0 | BC46: 0 | BD46: 0 | BE46: 0 | BF46: 0 | BG46: 0 | BH46: 0 | BI46: 0 | BJ46: 0 | BK46: 0 | BL46: 0 | BM46: 0 | BN46: 0 | BO46: 0 | BP46: 0 | BQ46: 0 | BR46: 0 | BS46: 0
C47: 0.012445695 | D47: 0.013339792 | E47: 0.014297892 | F47: 0.015324546 | G47: 0.016424619 | H47: 0.017603317 | I47: 0.01886621 | J47: 0.020219253 | K47: 0.021668817 | L47: 0.023221709 | M47: 0.024885209 | N47: 0.026667095 | O47: 0.028575679 | P47: 0.030619838 | Q47: 0.032809055 | R47: 0.035153451 | S47: 0.037663833 | T47: 0.040351728 | U47: 0.043229437 | V47: 0.046310071 | W47: 0.049607611 | X47: 0.05313695 | Y47: 0.056913953 | Z47: 0.060955509 | AA47: 0.065279591 | AB47: 0.069905313 | AC47: 0.074852996 | AD47: 0.080144231 | AE47: 0.085801942 | AF47: 0.091850457 | AG47: 0.098315575 | AH47: 0.10522464 | AI47: 0.1126066 | AJ47: 0.1204921 | AK47: 0.12891353 | AL47: 0.13790513 | AM47: 0.14750301 | AN47: 0.15774528 | AO47: 0.16867206 | AP47: 0.18032562 | AQ47: 0.19275035 | AR47: 0.20599292 | AS47: 0.22010226 | AT47: 0.23512966 | AU47: 0.25112879 | AV47: 0.26815578 | AW47: 0.2862692 | AX47: 0 | AY47: 0 | AZ47: 0 | BA47: 0 | BB47: 0 | BC47: 0 | BD47: 0 | BE47: 0 | BF47: 0 | BG47: 0 | BH47: 0 | BI47: 0 | BJ47: 0 | BK47: 0 | BL47: 0 | BM47: 0 | BN47: 0 | BO47: 0 | BP47: 0 | BQ47: 0 | BR47: 0 | BS47: 0
C48: 0.011702493 | D48: 0.012544646 | E48: 0.013447202 | F48: 0.014414462 | G48: 0.015451032 | H48: 0.016561839 | I48: 0.017752153 | J48: 0.019027616 | K48: 0.020394257 | L48: 0.021858528 | M48: 0.023427326 | N48: 0.025108023 | O48: 0.026908499 | P48: 0.028837174 | Q48: 0.030903042 | R48: 0.033115711 | S48: 0.035485437 | T48: 0.038023169 | U48: 0.040740591 | V48: 0.043650166 | W48: 0.046765183 | X48: 0.050099812 | Y48: 0.053669148 | Z48: 0.05748927 | AA48: 0.061577298 | AB48: 0.065951449 | AC48: 0.070631098 | AD48: 0.075636844 | AE48: 0.080990572 | AF48: 0.086715518 | AG48: 0.092836344 | AH48: 0.099379199 | AI48: 0.1063718 | AJ48: 0.11384348 | AK48: 0.12182531 | AL48: 0.13035012 | AM48: 0.13945258 | AN48: 0.14916931 | AO48: 0.15953891 | AP48: 0.17060205 | AQ48: 0.18240152 | AR48: 0.19498231 | AS48: 0.20839168 | AT48: 0.22267918 | AU48: 0.23789675 | AV48: 0.25409872 | AW48: 0.27134192 | AX48: 0.28968562 | AY48: 0 | AZ48: 0 | BA48: 0 | BB48: 0 | BC48: 0 | BD48: 0 | BE48: 0 | BF48: 0 | BG48: 0 | BH48: 0 | BI48: 0 | BJ48: 0 | BK48: 0 | BL48: 0 | BM48: 0 | BN48: 0 | BO48: 0 | BP48: 0 | BQ48: 0 | BR48: 0 | BS48: 0
C49: 0.01098416 | D49: 0.011776005 | E49: 0.012624755 | F49: 0.013534473 | G49: 0.014509508 | H49: 0.015554516 | I49: 0.016674478 | J49: 0.017874723 | K49: 0.019160956 | L49: 0.020539275 | M49: 0.022016204 | N49: 0.02359872 | O49: 0.02529428 | P49: 0.027110855 | Q49: 0.029056964 | R49: 0.031141708 | S49: 0.033374806 | T49: 0.035766639 | U49: 0.038328287 | V49: 0.041071572 | W49: 0.044009111 | X49: 0.047154354 | Y49: 0.050521642 | Z49: 0.054126256 | AA49: 0.057984474 | AB49: 0.062113626 | AC49: 0.066532154 | AD49: 0.071259675 | AE49: 0.076317043 | AF49: 0.081726414 | AG49: 0.087511315 | AH49: 0.093696714 | AI49: 0.10030909 | AJ49: 0.10737649 | AK49: 0.11492864 | AL49: 0.12299696 | AM49: 0.13161471 | AN49: 0.14081699 | AO49: 0.15064086 | AP49: 0.16112539 | AQ49: 0.17231175 | AR49: 0.18424324 | AS49: 0.1969654 | AT49: 0.21052604 | AU49: 0.2249753 | AV49: 0.24036573 | AW49: 0.2567523 | AX49: 0.27419245 | AY49: 0.29274615 | AZ49: 0 | BA49: 0 | BB49: 0 | BC49: 0 | BD49: 0 | BE49: 0 | BF49: 0 | BG49: 0 | BH49: 0 | BI49: 0 | BJ49: 0 | BK49: 0 | BL49: 0 | BM49: 0 | BN49: 0 | BO49: 0 | BP49: 0 | BQ49: 0 | BR49: 0 | BS49: 0
C50: 0.010290849 | D50: 0.011034038 | E50: 0.011830741 | F50: 0.012684788 | G50: 0.013600281 | H50: 0.014581608 | I50: 0.01563347 | J50: 0.016760894 | K50: 0.017969264 | L50: 0.019264336 | M50: 0.020652272 | N50: 0.022139659 | O50: 0.023733543 | P50: 0.025441458 | Q50: 0.027271457 | R50: 0.029232145 | S50: 0.031332716 | T50: 0.033582995 | U50: 0.035993468 | V50: 0.038575333 | W50: 0.04134054 | X50: 0.044301839 | Y50: 0.047472828 | Z50: 0.050868002 | AA50: 0.054502809 | AB50: 0.058393706 | AC50: 0.062558215 | AD50: 0.067014981 | AE50: 0.071783839 | AF50: 0.076885875 | AG50: 0.082343496 | AH50: 0.08818049 | AI50: 0.094422105 | AJ50: 0.10109512 | AK50: 0.1082279 | AL50: 0.11585049 | AM50: 0.12399469 | AN50: 0.13269411 | AO50: 0.14198426 | AP50: 0.1519026 | AQ50: 0.16248865 | AR50: 0.17378402 | AS50: 0.18583251 | AT50: 0.19868015 | AU50: 0.21237527 | AV50: 0.22696856 | AW50: 0.24251313 | AX50: 0.25906453 | AY50: 0.27668082 | AZ50: 0.2954226 | BA50: 0 | BB50: 0 | BC50: 0 | BD50: 0 | BE50: 0 | BF50: 0 | BG50: 0 | BH50: 0 | BI50: 0 | BJ50: 0 | BK50: 0 | BL50: 0 | BM50: 0 | BN50: 0 | BO50: 0 | BP50: 0 | BQ50: 0 | BR50: 0 | BS50: 0
C51: 0.0096226129 | D51: 0.010318808 | E51: 0.011065234 | F51: 0.011865495 | G51: 0.01272345 | H51: 0.013643232 | I51: 0.014629264 | J51: 0.015686283 | K51: 0.016819358 | L51: 0.018033915 | M51: 0.01933576 | N51: 0.020731102 | O51: 0.022226588 | P51: 0.023829321 | Q51: 0.025546902 | R51: 0.027387451 | S51: 0.029359651 | T51: 0.031472779 | U51: 0.033736745 | V51: 0.036162132 | W51: 0.03876024 | X51: 0.04154313 | Y51: 0.04452367 | Z51: 0.047715584 | AA51: 0.051133507 | AB51: 0.054793034 | AC51: 0.058710778 | AD51: 0.06290443 | AE51: 0.067392819 | AF51: 0.072195972 | AG51: 0.077335185 | AH51: 0.082833081 | AI51: 0.08871369 | AJ51: 0.095002508 | AK51: 0.10172658 | AL51: 0.10891456 | AM51: 0.1165968 | AN51: 0.1248054 | AO51: 0.13357433 | AP51: 0.14293944 | AQ51: 0.15293858 | AR51: 0.16361165 | AS51: 0.17500071 | AT51: 0.18714996 | AU51: 0.20010591 | AV51: 0.21391736 | AW51: 0.22863552 | AX51: 0.244314 | AY51: 0.2610089 | AZ51: 0.27877885 | BA51: 0.29768502 | BB51: 0 | BC51: 0 | BD51: 0 | BE51: 0 | BF51: 0 | BG51: 0 | BH51: 0 | BI51: 0 | BJ51: 0 | BK51: 0 | BL51: 0 | BM51: 0 | BN51: 0 | BO51: 0 | BP51: 0 | BQ51: 0 | BR51: 0 | BS51: 0
C52: 0.0089794096 | D52: 0.0096302766 | E52: 0.0103282 | F52: 0.011076565 | G52: 0.011878995 | H52: 0.012739374 | I52: 0.013661857 | J52: 0.014650897 | K52: 0.015711259 | L52: 0.016848047 | M52: 0.018066719 | N52: 0.019373122 | O52: 0.020773506 | P52: 0.022274563 | Q52: 0.023883446 | R52: 0.025607808 | S52: 0.027455829 | T52: 0.029436254 | U52: 0.031558428 | V52: 0.033832334 | W52: 0.036268636 | X52: 0.03887872 | Y52: 0.041674739 | Z52: 0.044669663 | AA52: 0.047877325 | AB52: 0.051312475 | AC52: 0.054990834 | AD52: 0.058929153 | AE52: 0.063145267 | AF52: 0.067658161 | AG52: 0.072488031 | AH52: 0.077656351 | AI52: 0.08318594 | AJ52: 0.089101031 | AK52: 0.095427343 | AL52: 0.10219215 | AM52: 0.10942436 | AN52: 0.1171546 | AO52: 0.12541524 | AP52: 0.13424055 | AQ52: 0.14366671 | AR52: 0.15373189 | AS52: 0.16447637 | AT52: 0.17594255 | AU52: 0.18817506 | AV52: 0.2012208 | AW52: 0.21512902 | AX52: 0.22995135 | AY52: 0.24574191 | AZ52: 0.26255729 | BA52: 0.28045662 | BB52: 0.29950161 | BC52: 0 | BD52: 0 | BE52: 0 | BF52: 0 | BG52: 0 | BH52: 0 | BI52: 0 | BJ52: 0 | BK52: 0 | BL52: 0 | BM52: 0 | BN52: 0 | BO52: 0 | BP52: 0 | BQ52: 0 | BR52: 0 | BS52: 0
C53: 0.008361114 | D53: 0.0089683174 | E53: 0.0096195121 | F53: 0.010317869 | G53: 0.011066787 | H53: 0.011869904 | I53: 0.01273112 | J53: 0.013654609 | K53: 0.014644844 | L53: 0.015706612 | M53: 0.016845039 | N53: 0.018065613 | O53: 0.019374205 | P53: 0.020777101 | Q53: 0.022281024 | R53: 0.023893168 | S53: 0.025621224 | T53: 0.027473419 | U53: 0.029458547 | V53: 0.031586005 | W53: 0.033865835 | X53: 0.036308764 | Y53: 0.038926247 | Z53: 0.041730513 | AA53: 0.04473461 | AB53: 0.04795246 | AC53: 0.051398909 | AD53: 0.055089781 | AE53: 0.059041937 | AF53: 0.063273333 | AG53: 0.067803083 | AH53: 0.072651523 | AI53: 0.077840277 | AJ53: 0.083392326 | AK53: 0.089332077 | AL53: 0.095685434 | AM53: 0.10247987 | AN53: 0.10974451 | AO53: 0.1175102 | AP53: 0.12580957 | AQ53: 0.13467714 | AR53: 0.14414935 | AS53: 0.1542647 | AT53: 0.16506374 | AU53: 0.17658921 | AV53: 0.1888861 | AW53: 0.20200166 | AX53: 0.21598553 | AY53: 0.23088976 | AZ53: 0.24676887 | BA53: 0.2636799 | BB53: 0.28168244 | BC53: 0.30083869 | BD53: 0 | BE53: 0 | BF53: 0 | BG53: 0 | BH53: 0 | BI53: 0 | BJ53: 0 | BK53: 0 | BL53: 0 | BM53: 0 | BN53: 0 | BO53: 0 | BP53: 0 | BQ53: 0 | BR53: 0 | BS53: 0
C54: 0.0077675255 | D54: 0.0083327223 | E54: 0.0089389537 | F54: 0.0095891854 | G54: 0.010286595 | H54: 0.011034588 | I54: 0.011836811 | J54: 0.012697173 | K54: 0.01361986 | L54: 0.014609356 | M54: 0.01567046 | N54: 0.016808315 | O54: 0.018028423 | P54: 0.019336676 | Q54: 0.020739378 | R54: 0.022243278 | S54: 0.023855592 | T54: 0.025584041 | U54: 0.027436882 | V54: 0.029422943 | W54: 0.031551659 | X54: 0.033833113 | Y54: 0.036278078 | Z54: 0.038898057 | AA54: 0.041705335 | AB54: 0.044713021 | AC54: 0.047935101 | AD54: 0.051386492 | AE54: 0.055083097 | AF54: 0.059041861 | AG54: 0.063280833 | AH54: 0.067819228 | AI54: 0.072677492 | AJ54: 0.077877365 | AK54: 0.083441957 | AL54: 0.089395814 | AM54: 0.095764989 | AN54: 0.10257712 | AO54: 0.1098615 | AP54: 0.11764916 | AQ54: 0.12597294 | AR54: 0.13486756 | AS54: 0.1443697 | AT54: 0.1545181 | AU54: 0.16535358 | AV54: 0.17691916 | AW54: 0.1892601 | AX54: 0.20242399 | AY54: 0.2164608 | AZ54: 0.23142291 | BA54: 0.24736522 | BB54: 0.26434515 | BC54: 0.28242272 | BD54: 0.30166053 | BE54: 0 | BF54: 0 | BG54: 0 | BH54: 0 | BI54: 0 | BJ54: 0 | BK54: 0 | BL54: 0 | BM54: 0 | BN54: 0 | BO54: 0 | BP54: 0 | BQ54: 0 | BR54: 0 | BS54: 0
C55: 0.007198376 | D55: 0.007723211 | E55: 0.0082862329 | F55: 0.0088902084 | G55: 0.009538103 | H55: 0.010233094 | I55: 0.010978588 | J55: 0.011778234 | K55: 0.01263594 | L55: 0.013555897 | M55: 0.01454259 | N55: 0.015600824 | O55: 0.016735745 | P55: 0.017952863 | Q55: 0.019258076 | R55: 0.020657699 | S55: 0.022158487 | T55: 0.023767671 | U55: 0.025492986 | V55: 0.027342702 | W55: 0.029325667 | X55: 0.031451335 | Y55: 0.033729814 | Z55: 0.036171902 | AA55: 0.038789132 | AB55: 0.041593821 | AC55: 0.044599116 | AD55: 0.047819044 | AE55: 0.051268568 | AF55: 0.054963642 | AG55: 0.058921268 | AH55: 0.063159557 | AI55: 0.067697794 | AJ55: 0.0725565 | AK55: 0.077757501 | AL55: 0.083323996 | AM55: 0.089280633 | AN55: 0.095653575 | AO55: 0.10247058 | AP55: 0.10976107 | AQ55: 0.11755622 | AR55: 0.12588902 | AS55: 0.13479436 | AT55: 0.14430911 | AU55: 0.15447218 | AV55: 0.16532462 | AW55: 0.17690966 | AX55: 0.18927281 | AY55: 0.20246191 | AZ55: 0.2165272 | BA55: 0.23152136 | BB55: 0.2474996 | BC55: 0.26451967 | BD55: 0.28264192 | BE55: 0.30192933 | BF55: 0 | BG55: 0 | BH55: 0 | BI55: 0 | BJ55: 0 | BK55: 0 | BL55: 0 | BM55: 0 | BN55: 0 | BO55: 0 | BP55: 0 | BQ55: 0 | BR55: 0 | BS55: 0
C56: 0.0066533372 | D56: 0.007139439 | E56: 0.0076609883 | F56: 0.0082205599 | G56: 0.008820914 | H56: 0.0094650095 | I56: 0.010156018 | J56: 0.010897338 | K56: 0.011692612 | L56: 0.012545744 | M56: 0.013460916 | N56: 0.014442608 | O56: 0.01549562 | P56: 0.016625092 | Q56: 0.017836528 | R56: 0.019135823 | S56: 0.020529285 | T56: 0.022023669 | U56: 0.023626202 | V56: 0.025344615 | W56: 0.027187182 | X56: 0.029162747 | Y56: 0.031280769 | Z56: 0.033551359 | AA56: 0.03598532 | AB56: 0.038594193 | AC56: 0.041390304 | AD56: 0.044386813 | AE56: 0.047597762 | AF56: 0.051038134 | AG56: 0.054723903 | AH56: 0.058672098 | AI56: 0.062900862 | AJ56: 0.067429513 | AK56: 0.072278613 | AL56: 0.077470034 | AM56: 0.083027031 | AN56: 0.088974307 | AO56: 0.095338095 | AP56: 0.10214623 | AQ56: 0.10942821 | AR56: 0.11721531 | AS56: 0.12554063 | AT56: 0.13443916 | AU56: 0.14394791 | AV56: 0.15410592 | AW56: 0.16495438 | AX56: 0.17653672 | AY56: 0.1888986 | AZ56: 0.20208807 | BA56: 0.21615557 | BB56: 0.23115402 | BC56: 0.24713887 | BD56: 0.26416814 | BE56: 0.28230245 | BF56: 0.3016051 | BG56: 0 | BH56: 0 | BI56: 0 | BJ56: 0 | BK56: 0 | BL56: 0 | BM56: 0 | BN56: 0 | BO56: 0 | BP56: 0 | BQ56: 0 | BR56: 0 | BS56: 0
C57: 0.0061320275 | D57: 0.0065810046 | E57: 0.0070627974 | F57: 0.0075797955 | G57: 0.0081345614 | H57: 0.0087298426 | I57: 0.0093685848 | J57: 0.010053946 | K57: 0.01078931 | L57: 0.011578306 | M57: 0.012424821 | N57: 0.013333023 | O57: 0.014307375 | P57: 0.015352661 | Q57: 0.016474004 | R57: 0.017676892 | S57: 0.018967199 | T57: 0.02035122 | U57: 0.021835689 | V57: 0.023427814 | W57: 0.025135311 | X57: 0.026966434 | Y57: 0.028930009 | Z57: 0.031035478 | AA57: 0.033292934 | AB57: 0.035713163 | AC57: 0.03830769 | AD57: 0.041088827 | AE57: 0.044069719 | AF57: 0.047264395 | AG57: 0.050687828 | AH57: 0.054355982 | AI57: 0.05828588 | AJ57: 0.062495659 | AK57: 0.067004638 | AL57: 0.07183338 | AM57: 0.077003765 | AN57: 0.082539055 | AO57: 0.088463972 | AP57: 0.094804768 | AQ57: 0.1015893 | AR57: 0.10884712 | AS57: 0.11660952 | AT57: 0.12490966 | AU57: 0.13378259 | AV57: 0.14326538 | AW57: 0.15339716 | AX57: 0.16421921 | AY57: 0.17577504 | AZ57: 0.18811046 | BA57: 0.20127363 | BB57: 0.21531514 | BC57: 0.23028807 | BD57: 0.24624805 | BE57: 0.26325328 | BF57: 0.28136462 | BG57: 0.30064558 | BH57: 0 | BI57: 0 | BJ57: 0 | BK57: 0 | BL57: 0 | BM57: 0 | BN57: 0 | BO57: 0 | BP57: 0 | BQ57: 0 | BR57: 0 | BS57: 0
C58: 0.0056340186 | D58: 0.0060474561 | E58: 0.0064911837 | F58: 0.006967413 | G58: 0.0074785161 | H58: 0.0080270371 | I58: 0.0086157038 | J58: 0.0092474416 | K58: 0.0099253868 | L58: 0.010652902 | M58: 0.011433592 | N58: 0.012271319 | O58: 0.013170227 | P58: 0.014134751 | Q58: 0.015169647 | R58: 0.01628001 | S58: 0.017471297 | T58: 0.018749353 | U58: 0.020120437 | V58: 0.021591252 | W58: 0.023168971 | X58: 0.024861274 | Y58: 0.026676376 | Z58: 0.028623069 | AA58: 0.030710754 | AB58: 0.032949483 | AC58: 0.035350003 | AD58: 0.037923797 | AE58: 0.040683135 | AF58: 0.043641119 | AG58: 0.046811737 | AH58: 0.050209916 | AI58: 0.053851581 | AJ58: 0.057753711 | AK58: 0.061934401 | AL58: 0.066412931 | AM58: 0.071209824 | AN58: 0.076346922 | AO58: 0.081847454 | AP58: 0.087736108 | AQ58: 0.094039109 | AR58: 0.10078429 | AS58: 0.10800117 | AT58: 0.11572105 | AU58: 0.12397706 | AV58: 0.13280427 | AW58: 0.14223973 | AX58: 0.15232259 | AY58: 0.16309417 | AZ58: 0.17459801 | BA58: 0.18687995 | BB58: 0.19998823 | BC58: 0.21397349 | BD58: 0.22888892 | BE58: 0.24479024 | BF58: 0.26173577 | BG58: 0.27978651 | BH58: 0.29900612 | BI58: 0 | BJ58: 0 | BK58: 0 | BL58: 0 | BM58: 0 | BN58: 0 | BO58: 0 | BP58: 0 | BQ58: 0 | BR58: 0 | BS58: 0
C59: 0.0051588412 | D59: 0.0055382977 | E59: 0.0059456237 | F59: 0.0063828597 | G59: 0.0068521949 | H59: 0.0073559774 | I59: 0.007896726 | J59: 0.008477142 | K59: 0.0091001227 | L59: 0.0097687749 | M59: 0.01048643 | N59: 0.01125666 | O59: 0.012083294 | P59: 0.012970437 | Q59: 0.013922488 | R59: 0.014944163 | S59: 0.016040515 | T59: 0.017216957 | U59: 0.018479288 | V59: 0.019833719 | W59: 0.021286902 | X59: 0.022845959 | Y59: 0.024518514 | Z59: 0.026312727 | AA59: 0.028237327 | AB59: 0.030301656 | AC59: 0.032515702 | AD59: 0.034890144 | AE59: 0.037436399 | AF59: 0.040166664 | AG59: 0.043093968 | AH59: 0.046232225 | AI59: 0.049596286 | AJ59: 0.053201995 | AK59: 0.057066251 | AL59: 0.06120707 | AM59: 0.065643646 | AN59: 0.070396421 | AO59: 0.075487152 | AP59: 0.080938984 | AQ59: 0.086776522 | AR59: 0.093025908 | AS59: 0.099714895 | AT59: 0.10687293 | AU59: 0.11453122 | AV59: 0.12272284 | AW59: 0.13148278 | AX59: 0.14084804 | AY59: 0.15085772 | AZ59: 0.16155307 | BA59: 0.17297761 | BB59: 0.18517714 | BC59: 0.19819988 | BD59: 0.21209648 | BE59: 0.22692013 | BF59: 0.24272656 | BG59: 0.25957415 | BH59: 0.27752394 | BI59: 0.29663968 | BJ59: 0 | BK59: 0 | BL59: 0 | BM59: 0 | BN59: 0 | BO59: 0 | BP59: 0 | BQ59: 0 | BR59: 0 | BS59: 0
C60: 0.0047059912 | D60: 0.0050529959 | E60: 0.0054255531 | F60: 0.0058255391 | G60: 0.0062549672 | H60: 0.0067159975 | I60: 0.0072109477 | J60: 0.0077423042 | K60: 0.0083127341 | L60: 0.0089250984 | M60: 0.0095824657 | N60: 0.010288127 | O60: 0.011045611 | P60: 0.011858703 | Q60: 0.01273146 | R60: 0.01366823 | S60: 0.014673678 | T60: 0.015752799 | U60: 0.016910948 | V60: 0.018153864 | W60: 0.019487691 | X60: 0.020919015 | Y60: 0.022454886 | Z60: 0.024102852 | AA60: 0.025870994 | AB60: 0.027767961 | AC60: 0.029803007 | AD60: 0.031986031 | AE60: 0.034327618 | AF60: 0.036839087 | AG60: 0.039532535 | AH60: 0.042420883 | AI60: 0.045517937 | AJ60: 0.048838433 | AK60: 0.0523981 | AL60: 0.056213714 | AM60: 0.060303166 | AN60: 0.064685522 | AO60: 0.069381094 | AP60: 0.074411505 | AQ60: 0.079799762 | AR60: 0.085570332 | AS60: 0.091749217 | AT60: 0.09836403 | AU60: 0.10544407 | AV60: 0.11302042 | AW60: 0.12112599 | AX60: 0.12979565 | AY60: 0.13906627 | AZ60: 0.1489768 | BA60: 0.15956838 | BB60: 0.1708844 | BC60: 0.18297057 | BD60: 0.19587499 | BE60: 0.20964822 | BF60: 0.22434337 | BG60: 0.24001612 | BH60: 0.25672479 | BI60: 0.2745304 | BJ60: 0.29349668 | BK60: 0 | BL60: 0 | BM60: 0 | BN60: 0 | BO60: 0 | BP60: 0 | BQ60: 0 | BR60: 0 | BS60: 0
C61: 0.0042749347 | D61: 0.0045909853 | E61: 0.0049303733 | F61: 0.0052948173 | G61: 0.0056861622 | H61: 0.0061063878 | I61: 0.0065576188 | J61: 0.0070421351 | K61: 0.0075623829 | L61: 0.0081209873 | M61: 0.0087207643 | N61: 0.0093647348 | O61: 0.01005614 | P61: 0.010798455 | Q61: 0.011595408 | R61: 0.012450996 | S61: 0.013369507 | T61: 0.014355536 | U61: 0.015414009 | V61: 0.016550207 | W61: 0.017769789 | X61: 0.01907882 | Y61: 0.020483795 | Z61: 0.021991672 | AA61: 0.023609906 | AB61: 0.025346474 | AC61: 0.027209919 | AD61: 0.029209383 | AE61: 0.031354647 | AF61: 0.033656173 | AG61: 0.036125152 | AH61: 0.038773545 | AI61: 0.041614134 | AJ61: 0.044660576 | AK61: 0.047927456 | AL61: 0.051430343 | AM61: 0.05518585 | AN61: 0.059211695 | AO61: 0.063526769 | AP61: 0.0681512 | AQ61: 0.073106423 | AR61: 0.078415253 | AS61: 0.084101959 | AT61: 0.09019234 | AU61: 0.096713802 | AV61: 0.10369544 | AW61: 0.11116811 | AX61: 0.11916454 | AY61: 0.12771935 | AZ61: 0.13686922 | BA61: 0.14665288 | BB61: 0.15711126 | BC61: 0.16828755 | BD61: 0.18022726 | BE61: 0.19297829 | BF61: 0.20659103 | BG61: 0.22111842 | BH61: 0.23661597 | BI61: 0.25314187 | BJ61: 0.270757 | BK61: 0.28952498 | BL61: 0 | BM61: 0 | BN61: 0 | BO61: 0 | BP61: 0 | BQ61: 0 | BR61: 0 | BS61: 0
C62: 0.0038651133 | D62: 0.0041516739 | E62: 0.0044594566 | F62: 0.0047900294 | G62: 0.0051450756 | H62: 0.0055264023 | I62: 0.0059359493 | J62: 0.0063757985 | K62: 0.0068481847 | L62: 0.0073555062 | M62: 0.0079003369 | N62: 0.0084854387 | O62: 0.0091137753 | P62: 0.0097885263 | Q62: 0.010513103 | R62: 0.011291165 | S62: 0.012126638 | T62: 0.01302373 | U62: 0.013986957 | V62: 0.015021159 | W62: 0.016131526 | X62: 0.01732362 | Y62: 0.018603403 | Z62: 0.019977265 | AA62: 0.021452051 | AB62: 0.023035094 | AC62: 0.024734246 | AD62: 0.026557918 | AE62: 0.028515111 | AF62: 0.03061546 | AG62: 0.032869272 | AH62: 0.035287576 | AI62: 0.037882163 | AJ62: 0.040665637 | AK62: 0.043651469 | AL62: 0.046854048 | AM62: 0.050288741 | AN62: 0.053971948 | AO62: 0.057921168 | AP62: 0.062155062 | AQ62: 0.066693521 | AR62: 0.071557734 | AS62: 0.076770262 | AT62: 0.082355113 | AU62: 0.088337816 | AV62: 0.094745502 | AW62: 0.10160698 | AX62: 0.10895283 | AY62: 0.11681547 | AZ62: 0.12522925 | BA62: 0.13423051 | BB62: 0.14385773 | BC62: 0.15415151 | BD62: 0.16515475 | BE62: 0.17691265 | BF62: 0.18947285 | BG62: 0.20288545 | BH62: 0.2172031 | BI62: 0.23248107 | BJ62: 0.2487773 | BK62: 0.26615243 | BL62: 0.28466988 | BM62: 0 | BN62: 0 | BO62: 0 | BP62: 0 | BQ62: 0 | BR62: 0 | BS62: 0
C63: 0.0034759494 | D63: 0.0037344486 | E63: 0.0040121526 | F63: 0.0043104853 | G63: 0.0046309756 | H63: 0.0049752652 | I63: 0.005345117 | J63: 0.0057424235 | K63: 0.0061692167 | L63: 0.0066276781 | M63: 0.0071201495 | N63: 0.0076491444 | O63: 0.0082173611 | P63: 0.0088276951 | Q63: 0.0094832542 | R63: 0.010187373 | S63: 0.01094363 | T63: 0.011755864 | U63: 0.012628193 | V63: 0.013565034 | W63: 0.014571126 | X63: 0.015651549 | Y63: 0.016811751 | Z63: 0.018057572 | AA63: 0.019395272 | AB63: 0.02083156 | AC63: 0.022373625 | AD63: 0.024029167 | AE63: 0.025806436 | AF63: 0.027714264 | AG63: 0.029762107 | AH63: 0.031960086 | AI63: 0.03431903 | AJ63: 0.036850522 | AK63: 0.039566951 | AL63: 0.042481558 | AM63: 0.045608491 | AN63: 0.048962868 | AO63: 0.052560825 | AP63: 0.05641959 | AQ63: 0.060557538 | AR63: 0.064994263 | AS63: 0.069750647 | AT63: 0.074848932 | AU63: 0.080312795 | AV63: 0.086167427 | AW63: 0.092439605 | AX63: 0.099157782 | AY63: 0.10635216 | AZ63: 0.11405479 | BA63: 0.12229963 | BB63: 0.13112264 | BC63: 0.14056188 | BD63: 0.15065759 | BE63: 0.16145224 | BF63: 0.17299067 | BG63: 0.18532008 | BH63: 0.19849021 | BI63: 0.21255333 | BJ63: 0.22756432 | BK63: 0.24358078 | BL63: 0.26066299 | BM63: 0.27887407 | BN63: 0 | BO63: 0 | BP63: 0 | BQ63: 0 | BR63: 0 | BS63: 0
C64: 0.0031068509 | D64: 0.0033386805 | E64: 0.0035877935 | F64: 0.003855476 | G64: 0.0041431094 | H64: 0.0044521776 | I64: 0.0047842742 | J64: 0.0051411108 | K64: 0.0055245255 | L64: 0.0059364924 | M64: 0.0063791311 | N64: 0.0068547178 | O64: 0.0073656961 | P64: 0.0079146898 | Q64: 0.0085045157 | R64: 0.0091381974 | S64: 0.0098189804 | T64: 0.010550348 | U64: 0.011336038 | V64: 0.012180063 | W64: 0.013086726 | X64: 0.014060644 | Y64: 0.015106771 | Z64: 0.016230419 | AA64: 0.017437284 | AB64: 0.018733475 | AC64: 0.020125539 | AD64: 0.021620496 | AE64: 0.023225866 | AF64: 0.024949708 | AG64: 0.026800654 | AH64: 0.028787948 | AI64: 0.030921488 | AJ64: 0.033211866 | AK64: 0.03567042 | AL64: 0.038309275 | AM64: 0.0411414 | AN64: 0.044180656 | AO64: 0.047441858 | AP64: 0.050940829 | AQ64: 0.054694464 | AR64: 0.058720795 | AS64: 0.063039056 | AT64: 0.067669756 | AU64: 0.072634747 | AV64: 0.077957305 | AW64: 0.083662199 | AX64: 0.08977578 | AY64: 0.096326053 | AZ64: 0.10334277 | BA64: 0.11085749 | BB64: 0.11890372 | BC64: 0.12751692 | BD64: 0.13673466 | BE64: 0.14659666 | BF64: 0.1571449 | BG64: 0.1684237 | BH64: 0.18047977 | BI64: 0.19336233 | BJ64: 0.20712315 | BK64: 0.22181662 | BL64: 0.23749986 | BM64: 0.2542327 | BN64: 0.27207779 | BO64: 0 | BP64: 0 | BQ64: 0 | BR64: 0 | BS64: 0
C65: 0.0027572168 | D65: 0.0029637305 | E65: 0.0031856998 | F65: 0.0034242792 | G65: 0.0036807097 | H65: 0.0039563242 | I65: 0.0042525552 | J65: 0.0045709412 | K65: 0.0049131354 | L65: 0.0052809136 | M65: 0.0056761833 | N65: 0.0061009936 | O65: 0.0065575451 | P65: 0.0070482015 | Q65: 0.0075755013 | R65: 0.0081421703 | S65: 0.0087511355 | T65: 0.0094055399 | U65: 0.010108757 | V65: 0.01086441 | W65: 0.011676386 | X65: 0.012548858 | Y65: 0.013486305 | Z65: 0.014493531 | AA65: 0.015575692 | AB65: 0.016738319 | AC65: 0.017987344 | AD65: 0.019329127 | AE65: 0.020770489 | AF65: 0.022318743 | AG65: 0.023981726 | AH65: 0.025767834 | AI65: 0.027686065 | AJ65: 0.029746055 | AK65: 0.031958122 | AL65: 0.034333312 | AM65: 0.036883445 | AN65: 0.039621166 | AO65: 0.042560001 | AP65: 0.045714407 | AQ65: 0.049099835 | AR65: 0.052732791 | AS65: 0.056630898 | AT65: 0.060812963 | AU65: 0.065299049 | AV65: 0.070110548 | AW65: 0.075270251 | AX65: 0.080802429 | AY65: 0.086732914 | AZ65: 0.093089178 | BA65: 0.099900418 | BB65: 0.10719764 | BC65: 0.11501374 | BD65: 0.12338362 | BE65: 0.13234421 | BF65: 0.14193464 | BG65: 0.15219626 | BH65: 0.16317275 | BI65: 0.1749102 | BJ65: 0.18745719 | BK65: 0.20086487 | BL65: 0.21518702 | BM65: 0.23048011 | BN65: 0.24680342 | BO65: 0.264219 | BP65: 0 | BQ65: 0 | BR65: 0 | BS65: 0
C66: 0.0024264427 | D66: 0.0026089555 | E66: 0.0028051869 | F66: 0.0030161668 | G66: 0.0032430017 | H66: 0.0034868812 | I66: 0.0037490837 | J66: 0.0040309833 | K66: 0.0043340564 | L66: 0.0046598899 | M66: 0.0050101889 | N66: 0.0053867857 | O66: 0.0057916491 | P66: 0.0062268942 | Q66: 0.0066947937 | R66: 0.0071977891 | S66: 0.007738503 | T66: 0.0083197525 | U66: 0.0089445634 | V66: 0.0096161854 | W66: 0.010338108 | X66: 0.011114079 | Y66: 0.011948121 | Z66: 0.012844554 | AA66: 0.013808014 | AB66: 0.014843476 | AC66: 0.015956282 | AD66: 0.01715216 | AE66: 0.018437258 | AF66: 0.01981817 | AG66: 0.021301967 | AH66: 0.022896231 | AI66: 0.024609091 | AJ66: 0.026449257 | AK66: 0.028426065 | AL66: 0.030549514 | AM66: 0.032830315 | AN66: 0.035279934 | AO66: 0.037910644 | AP66: 0.040735577 | AQ66: 0.043768778 | AR66: 0.047025265 | AS66: 0.050521089 | AT66: 0.054273397 | AU66: 0.058300499 | AV66: 0.062621937 | AW66: 0.067258559 | AX66: 0.072232592 | AY66: 0.077567719 | AZ66: 0.083289164 | BA66: 0.089423766 | BB66: 0.09600007 | BC66: 0.10304841 | BD66: 0.110601 | BE66: 0.11869201 | BF66: 0.12735768 | BG66: 0.13663637 | BH66: 0.1465687 | BI66: 0.15719759 | BJ66: 0.16856835 | BK66: 0.18072882 | BL66: 0.19372936 | BM66: 0.207623 | BN66: 0.22246547 | BO66: 0.23831528 | BP66: 0.25523378 | BQ66: 0 | BR66: 0 | BS66: 0
C67: 0.0021139279 | D67: 0.002273715 | E67: 0.0024455727 | F67: 0.0026304117 | G67: 0.0028292111 | H67: 0.0030430239 | I67: 0.003272982 | J67: 0.0035203026 | K67: 0.0037862941 | L67: 0.0040723633 | M67: 0.0043800226 | N67: 0.0047108976 | O67: 0.0050667361 | P67: 0.0054494163 | Q67: 0.0058609575 | R67: 0.0063035296 | S67: 0.0067794648 | T67: 0.0072912693 | U67: 0.0078416363 | V67: 0.0084334597 | W67: 0.0090698485 | X67: 0.0097541429 | Y67: 0.010489931 | Z67: 0.011281067 | AA67: 0.012131689 | AB67: 0.013046244 | AC67: 0.014029504 | AD67: 0.015086592 | AE67: 0.016223011 | AF67: 0.017444662 | AG67: 0.018757883 | AH67: 0.020169471 | AI67: 0.021686719 | AJ67: 0.023317446 | AK67: 0.025070041 | AL67: 0.026953494 | AM67: 0.028977442 | AN67: 0.031152212 | AO67: 0.033488865 | AP67: 0.035999247 | AQ67: 0.03869604 | AR67: 0.041592818 | AS67: 0.044704099 | AT67: 0.048045413 | AU67: 0.051633358 | AV67: 0.05548567 | AW67: 0.059621293 | AX67: 0.064060445 | AY67: 0.068824701 | AZ67: 0.073937064 | BA67: 0.079422048 | BB67: 0.085305759 | BC67: 0.091615985 | BD67: 0.098382275 | BE67: 0.10563603 | BF67: 0.1134106 | BG67: 0.12174137 | BH67: 0.13066584 | BI67: 0.14022373 | BJ67: 0.15045707 | BK67: 0.16141028 | BL67: 0.17313027 | BM67: 0.18566649 | BN67: 0.19907106 | BO67: 0.2133988 | BP67: 0.22870735 | BQ67: 0.24505717 | BR67: 0 | BS67: 0
C68: 0.0018190843 | D68: 0.0019573813 | E68: 0.0021061869 | F68: 0.0022662987 | G68: 0.0024385748 | H68: 0.0026239381 | I68: 0.0028233815 | J68: 0.0030379729 | K68: 0.0032688611 | L68: 0.0035172816 | M68: 0.0037845633 | N68: 0.0040721353 | O68: 0.0043815348 | P68: 0.0047144147 | Q68: 0.0050725526 | R68: 0.0054578602 | S68: 0.0058723926 | T68: 0.0063183598 | U68: 0.0067981379 | V68: 0.0073142811 | W68: 0.0078695354 | X68: 0.0084668525 | Y68: 0.0091094048 | Z68: 0.009800602 | AA68: 0.010544108 | AB68: 0.011343861 | AC68: 0.012204089 | AD68: 0.013129339 | AE68: 0.014124491 | AF68: 0.015194787 | AG68: 0.01634586 | AH68: 0.017583752 | AI68: 0.018914954 | AJ68: 0.020346431 | AK68: 0.021885659 | AL68: 0.023540657 | AM68: 0.025320028 | AN68: 0.027232998 | AO68: 0.02928946 | AP68: 0.031500017 | AQ68: 0.033876031 | AR68: 0.036429675 | AS68: 0.039173984 | AT68: 0.042122914 | AU68: 0.045291399 | AV68: 0.048695414 | AW68: 0.052352041 | AX68: 0.056279539 | AY68: 0.060497411 | AZ68: 0.065026483 | BA68: 0.06988898 | BB68: 0.075108605 | BC68: 0.080710624 | BD68: 0.08672195 | BE68: 0.093171231 | BF68: 0.10008894 | BG68: 0.10750747 | BH68: 0.11546121 | BI68: 0.12398666 | BJ68: 0.13312253 | BK68: 0.14290979 | BL68: 0.15339181 | BM68: 0.16461443 | BN68: 0.17662604 | BO68: 0.18947768 | BP68: 0.20322312 | BQ68: 0.21791893 | BR68: 0.23362454 | BS68: 0
C69: 0.001541349 | D69: 0.0016593517 | E69: 0.0017863845 | F69: 0.0019231378 | G69: 0.0020703545 | H69: 0.0022288344 | I69: 0.0023994382 | J69: 0.0025830924 | K69: 0.0027807937 | L69: 0.0029936152 | M69: 0.0032227113 | N69: 0.0034693246 | O69: 0.0037347921 | P69: 0.0040205523 | Q69: 0.0043281534 | R69: 0.0046592608 | S69: 0.0050156666 | T69: 0.0053992986 | U69: 0.005812231 | V69: 0.0062566948 | W69: 0.0067350899 | X69: 0.0072499979 | Y69: 0.0078041949 | Z69: 0.0084006669 | AA69: 0.0090426246 | AB69: 0.0097335206 | AC69: 0.010477067 | AD69: 0.011277254 | AE69: 0.012138371 | AF69: 0.01306503 | AG69: 0.014062185 | AH69: 0.01513516 | AI69: 0.016289676 | AJ69: 0.017531878 | AK69: 0.018868365 | AL69: 0.020306225 | AM69: 0.021853068 | AN69: 0.023517062 | AO69: 0.025306973 | AP69: 0.027232206 | AQ69: 0.02930285 | AR69: 0.031529726 | AS69: 0.033924432 | AT69: 0.036499402 | AU69: 0.039267953 | AV69: 0.042244352 | AW69: 0.045443871 | AX69: 0.048882856 | AY69: 0.052578792 | AZ69: 0.056550375 | BA69: 0.060817585 | BB69: 0.065401764 | BC69: 0.0703257 | BD69: 0.075613701 | BE69: 0.081291692 | BF69: 0.087387295 | BG69: 0.093929923 | BH69: 0.10095088 | BI69: 0.10848343 | BJ69: 0.11656294 | BK69: 0.12522691 | BL69: 0.13451516 | BM69: 0.14446981 | BN69: 0.1551355 | BO69: 0.16655938 | BP69: 0.17879126 | BQ69: 0.19188367 | BR69: 0.20589197 | BS69: 0.2208744

Sheet 9% 11-18-18
B1: =(0.5*B2+0.5*C2)/(1+'rate tree'!C1*17/365) -> 142.5023622
B2: =(0.5*B3+0.5*C3)/(1+'rate tree'!C2/2)+4.5 -> 143.7208217 | C2: =(0.5*C3+0.5*D3)/(1+'rate tree'!D2/2)+4.5 -> 141.3502735
B3: =(0.5*B4+0.5*C4)/(1+'rate tree'!C3/2)+4.5 -> 140.8878843 | C3: =(0.5*C4+0.5*D4)/(1+'rate tree'!D3/2)+4.5 -> 138.6239562 | D3: =(0.5*D4+0.5*E4)/(1+'rate tree'!E3/2)+4.5 -> 136.2642533
B4: =(0.5*B5+0.5*C5)/(1+'rate tree'!C4/2)+4.5 -> 138.3338548 | C4: =(0.5*C5+0.5*D5)/(1+'rate tree'!D4/2)+4.5 -> 136.1719923 | D4: =(0.5*D5+0.5*E5)/(1+'rate tree'!E4/2)+4.5 -> 133.9171262 | E4: =(0.5*E5+0.5*F5)/(1+'rate tree'!F4/2)+4.5 -> 131.5688296
B5: =(0.5*B6+0.5*C6)/(1+'rate tree'!C5/2)+4.5 -> 136.0186335 | C5: =(0.5*C6+0.5*D6)/(1+'rate tree'!D5/2)+4.5 -> 133.9580571 | D5: =(0.5*D6+0.5*E6)/(1+'rate tree'!E5/2)+4.5 -> 131.806306 | E5: =(0.5*E6+0.5*F6)/(1+'rate tree'!F5/2)+4.5 -> 129.5625451 | F5: =(0.5*F6+0.5*G6)/(1+'rate tree'!G5/2)+4.5 -> 127.2265165
B6: =(0.5*B7+0.5*C7)/(1+'rate tree'!C6/2)+4.5 -> 133.8855585 | C6: =(0.5*C7+0.5*D7)/(1+'rate tree'!D6/2)+4.5 -> 131.9340959 | D6: =(0.5*D7+0.5*E7)/(1+'rate tree'!E6/2)+4.5 -> 129.893607 | E6: =(0.5*E7+0.5*F7)/(1+'rate tree'!F6/2)+4.5 -> 127.7627797 | F6: =(0.5*F7+0.5*G7)/(1+'rate tree'!G6/2)+4.5 -> 125.540955 | G6: =(0.5*G7+0.5*H7)/(1+'rate tree'!H6/2)+4.5 -> 123.2279296
B7: =(0.5*B8+0.5*C8)/(1+'rate tree'!C7/2)+4.5 -> 131.8827169 | C7: =(0.5*C8+0.5*D8)/(1+'rate tree'!D7/2)+4.5 -> 130.0503164 | D7: =(0.5*D8+0.5*E8)/(1+'rate tree'!E7/2)+4.5 -> 128.1318127 | E7: =(0.5*E8+0.5*F8)/(1+'rate tree'!F7/2)+4.5 -> 126.125305 | F7: =(0.5*F8+0.5*G8)/(1+'rate tree'!G7/2)+4.5 -> 124.0297478 | G7: =(0.5*G8+0.5*H8)/(1+'rate tree'!H7/2)+4.5 -> 121.8444942 | H7: =(0.5*H8+0.5*I8)/(1+'rate tree'!I7/2)+4.5 -> 119.5693491
B8: =(0.5*B9+0.5*C9)/(1+'rate tree'!C8/2)+4.5 -> 129.9660468 | C8: =(0.5*C9+0.5*D9)/(1+'rate tree'!D8/2)+4.5 -> 128.2618704 | D8: =(0.5*D9+0.5*E9)/(1+'rate tree'!E8/2)+4.5 -> 126.4755464 | E8: =(0.5*E9+0.5*F9)/(1+'rate tree'!F8/2)+4.5 -> 124.6043567 | F8: =(0.5*F9+0.5*G9)/(1+'rate tree'!G8/2)+4.5 -> 122.6469025 | G8: =(0.5*G9+0.5*H9)/(1+'rate tree'!H8/2)+4.5 -> 120.6021227 | H8: =(0.5*H9+0.5*I9)/(1+'rate tree'!I8/2)+4.5 -> 118.4693442 | I8: =(0.5*I9+0.5*J9)/(1+'rate tree'!J8/2)+4.5 -> 116.2483328
B9: =(0.5*B10+0.5*C10)/(1+'rate tree'!C9/2)+4.5 -> 128.0931681 | C9: =(0.5*C10+0.5*D10)/(1+'rate tree'!D9/2)+4.5 -> 126.5240254 | D9: =(0.5*D10+0.5*E10)/(1+'rate tree'!E9/2)+4.5 -> 124.8779835 | E9: =(0.5*E10+0.5*F10)/(1+'rate tree'!F9/2)+4.5 -> 123.1510188 | F9: =(0.5*F10+0.5*G10)/(1+'rate tree'!G9/2)+4.5 -> 121.3414279 | G9: =(0.5*G10+0.5*H10)/(1+'rate tree'!H9/2)+4.5 -> 119.4477828 | H9: =(0.5*H10+0.5*I10)/(1+'rate tree'!I9/2)+4.5 -> 117.4689765 | I9: =(0.5*I10+0.5*J10)/(1+'rate tree'!J9/2)+4.5 -> 115.4042714 | J9: =(0.5*J10+0.5*K10)/(1+'rate tree'!K9/2)+4.5 -> 113.2533493
B10: =(0.5*B11+0.5*C11)/(1+'rate tree'!C10/2)+4.5 -> 126.2459394 | C10: =(0.5*C11+0.5*D11)/(1+'rate tree'!D10/2)+4.5 -> 124.8167843 | D10: =(0.5*D11+0.5*E11)/(1+'rate tree'!E10/2)+4.5 -> 123.3178019 | E10: =(0.5*E11+0.5*F11)/(1+'rate tree'!F10/2)+4.5 -> 121.7426277 | F10: =(0.5*F11+0.5*G11)/(1+'rate tree'!G10/2)+4.5 -> 120.0893144 | G10: =(0.5*G11+0.5*H11)/(1+'rate tree'!H10/2)+4.5 -> 118.3561277 | H10: =(0.5*H11+0.5*I11)/(1+'rate tree'!I10/2)+4.5 -> 116.5415871 | I10: =(0.5*I11+0.5*J11)/(1+'rate tree'!J10/2)+4.5 -> 114.6445097 | J10: =(0.5*J11+0.5*K11)/(1+'rate tree'!K10/2)+4.5 -> 112.6640557 | K10: =(0.5*K11+0.5*L11)/(1+'rate tree'!L10/2)+4.5 -> 110.5997771
B11: =(0.5*B12+0.5*C12)/(1+'rate tree'!C11/2)+4.5 -> 124.3939886 | C11: =(0.5*C12+0.5*D12)/(1+'rate tree'!D11/2)+4.5 -> 123.1065483 | D11: =(0.5*D12+0.5*E12)/(1+'rate tree'!E11/2)+4.5 -> 121.7592367 | E11: =(0.5*E12+0.5*F12)/(1+'rate tree'!F11/2)+4.5 -> 120.341188 | F11: =(0.5*F12+0.5*G12)/(1+'rate tree'!G11/2)+4.5 -> 118.8502813 | G11: =(0.5*G12+0.5*H12)/(1+'rate tree'!H11/2)+4.5 -> 117.2845492 | H11: =(0.5*H12+0.5*I12)/(1+'rate tree'!I11/2)+4.5 -> 115.642213 | I11: =(0.5*I12+0.5*J12)/(1+'rate tree'!J11/2)+4.5 -> 113.9217209 | J11: =(0.5*J12+0.5*K12)/(1+'rate tree'!K11/2)+4.5 -> 112.1217883 | K11: =(0.5*K12+0.5*L12)/(1+'rate tree'!L11/2)+4.5 -> 110.2414415 | L11: =(0.5*L12+0.5*M12)/(1+'rate tree'!M11/2)+4.5 -> 108.2800624
B12: =(0.5*B13+0.5*C13)/(1+'rate tree'!C12/2)+4.5 -> 122.5240517 | C12: =(0.5*C13+0.5*D13)/(1+'rate tree'!D12/2)+4.5 -> 121.3765377 | D12: =(0.5*D13+0.5*E13)/(1+'rate tree'!E12/2)+4.5 -> 120.1842547 | E12: =(0.5*E13+0.5*F13)/(1+'rate tree'!F12/2)+4.5 -> 118.9273705 | F12: =(0.5*F13+0.5*G13)/(1+'rate tree'!G12/2)+4.5 -> 117.6036686 | G12: =(0.5*G13+0.5*H13)/(1+'rate tree'!H12/2)+4.5 -> 116.2110311 | H12: =(0.5*H13+0.5*I13)/(1+'rate tree'!I12/2)+4.5 -> 114.747468 | I12: =(0.5*I13+0.5*J13)/(1+'rate tree'!J12/2)+4.5 -> 113.2111489 | J12: =(0.5*J13+0.5*K13)/(1+'rate tree'!K12/2)+4.5 -> 111.6004379 | K12: =(0.5*K13+0.5*L13)/(1+'rate tree'!L12/2)+4.5 -> 109.9139305 | L12: =(0.5*L13+0.5*M13)/(1+'rate tree'!M12/2)+4.5 -> 108.1504938 | M12: =(0.5*M13+0.5*N13)/(1+'rate tree'!N12/2)+4.5 -> 106.3093079
B13: =(0.5*B14+0.5*C14)/(1+'rate tree'!C13/2)+4.5 -> 120.6081384 | C13: =(0.5*C14+0.5*D14)/(1+'rate tree'!D13/2)+4.5 -> 119.5919162 | D13: =(0.5*D14+0.5*E14)/(1+'rate tree'!E13/2)+4.5 -> 118.5557804 | E13: =(0.5*E14+0.5*F14)/(1+'rate tree'!F13/2)+4.5 -> 117.4617678 | F13: =(0.5*F14+0.5*G14)/(1+'rate tree'!G13/2)+4.5 -> 116.3076494 | G13: =(0.5*G14+0.5*H14)/(1+'rate tree'!H13/2)+4.5 -> 115.0912467 | H13: =(0.5*H14+0.5*I14)/(1+'rate tree'!I13/2)+4.5 -> 113.8104551 | I13: =(0.5*I14+0.5*J14)/(1+'rate tree'!J13/2)+4.5 -> 112.463269 | J13: =(0.5*J14+0.5*K14)/(1+'rate tree'!K13/2)+4.5 -> 111.0478101 | K13: =(0.5*K14+0.5*L14)/(1+'rate tree'!L13/2)+4.5 -> 109.5623577 | L13: =(0.5*L14+0.5*M14)/(1+'rate tree'!M13/2)+4.5 -> 108.0053823 | M13: =(0.5*M14+0.5*N14)/(1+'rate tree'!N13/2)+4.5 -> 106.3755811 | N13: =(0.5*N14+0.5*O14)/(1+'rate tree'!O13/2)+4.5 -> 104.6719159
B14: =(0.5*B15+0.5*C15)/(1+'rate tree'!C14/2)+4.5 -> 118.6453183 | C14: =(0.5*C15+0.5*D15)/(1+'rate tree'!D14/2)+4.5 -> 117.7412646 | D14: =(0.5*D15+0.5*E15)/(1+'rate tree'!E14/2)+4.5 -> 116.861438 | E14: =(0.5*E15+0.5*F15)/(1+'rate tree'!F14/2)+4.5 -> 115.9309962 | F14: =(0.5*F15+0.5*G15)/(1+'rate tree'!G14/2)+4.5 -> 114.9477835 | G14: =(0.5*G15+0.5*H15)/(1+'rate tree'!H14/2)+4.5 -> 113.9096552 | H14: =(0.5*H15+0.5*I15)/(1+'rate tree'!I14/2)+4.5 -> 112.8144948 | I14: =(0.5*I15+0.5*J15)/(1+'rate tree'!J14/2)+4.5 -> 111.6602326 | J14: =(0.5*J15+0.5*K15)/(1+'rate tree'!K14/2)+4.5 -> 110.4448675 | K14: =(0.5*K15+0.5*L15)/(1+'rate tree'!L14/2)+4.5 -> 109.1664906 | L14: =(0.5*L15+0.5*M15)/(1+'rate tree'!M14/2)+4.5 -> 107.8233114 | M14: =(0.5*M15+0.5*N15)/(1+'rate tree'!N14/2)+4.5 -> 106.413686 | N14: =(0.5*N15+0.5*O15)/(1+'rate tree'!O14/2)+4.5 -> 104.9361487 | O14: =(0.5*O15+0.5*P15)/(1+'rate tree'!P14/2)+4.5 -> 103.3894442
B15: =(0.5*B16+0.5*C16)/(1+'rate tree'!C15/2)+4.5 -> 116.6403543 | C15: =(0.5*C16+0.5*D16)/(1+'rate tree'!D15/2)+4.5 -> 115.8086946 | D15: =(0.5*D16+0.5*E16)/(1+'rate tree'!E15/2)+4.5 -> 115.0841457 | E15: =(0.5*E16+0.5*F16)/(1+'rate tree'!F15/2)+4.5 -> 114.3167124 | F15: =(0.5*F16+0.5*G16)/(1+'rate tree'!G15/2)+4.5 -> 113.5043991 | G15: =(0.5*G16+0.5*H16)/(1+'rate tree'!H15/2)+4.5 -> 112.6451913 | H15: =(0.5*H16+0.5*I16)/(1+'rate tree'!I15/2)+4.5 -> 111.7370673 | I15: =(0.5*I16+0.5*J16)/(1+'rate tree'!J15/2)+4.5 -> 110.7780103 | J15: =(0.5*J16+0.5*K16)/(1+'rate tree'!K15/2)+4.5 -> 109.7660246 | K15: =(0.5*K16+0.5*L16)/(1+'rate tree'!L15/2)+4.5 -> 108.6991518 | L15: =(0.5*L16+0.5*M16)/(1+'rate tree'!M15/2)+4.5 -> 107.5754898 | M15: =(0.5*M16+0.5*N16)/(1+'rate tree'!N15/2)+4.5 -> 106.3932147 | N15: =(0.5*N16+0.5*O16)/(1+'rate tree'!O15/2)+4.5 -> 105.1506029 | O15: =(0.5*O16+0.5*P16)/(1+'rate tree'!P15/2)+4.5 -> 103.8460576 | P15: =(0.5*P16+0.5*Q16)/(1+'rate tree'!Q15/2)+4.5 -> 102.4781358
B16: =(0.5*B17+0.5*C17)/(1+'rate tree'!C16/2)+4.5 -> 114.6203901 | C16: =(0.5*C17+0.5*D17)/(1+'rate tree'!D16/2)+4.5 -> 113.7805396 | D16: =(0.5*D17+0.5*E17)/(1+'rate tree'!E16/2)+4.5 -> 113.2091315 | E16: =(0.5*E17+0.5*F17)/(1+'rate tree'!F16/2)+4.5 -> 112.6029643 | F16: =(0.5*F17+0.5*G17)/(1+'rate tree'!G16/2)+4.5 -> 111.9602884 | G16: =(0.5*G17+0.5*H17)/(1+'rate tree'!H16/2)+4.5 -> 111.279316 | H16: =(0.5*H17+0.5*I17)/(1+'rate tree'!I16/2)+4.5 -> 110.5582276 | I16: =(0.5*I17+0.5*J17)/(1+'rate tree'!J16/2)+4.5 -> 109.7951799 | J16: =(0.5*J17+0.5*K17)/(1+'rate tree'!K16/2)+4.5 -> 108.988315 | K16: =(0.5*K17+0.5*L17)/(1+'rate tree'!L16/2)+4.5 -> 108.1357712 | L16: =(0.5*L17+0.5*M17)/(1+'rate tree'!M16/2)+4.5 -> 107.2356955 | M16: =(0.5*M17+0.5*N17)/(1+'rate tree'!N16/2)+4.5 -> 106.2862574 | N16: =(0.5*N17+0.5*O17)/(1+'rate tree'!O16/2)+4.5 -> 105.2856647 | O16: =(0.5*O17+0.5*P17)/(1+'rate tree'!P16/2)+4.5 -> 104.232181 | P16: =(0.5*P17+0.5*Q17)/(1+'rate tree'!Q16/2)+4.5 -> 103.1241455 | Q16: =(0.5*Q17+0.5*R17)/(1+'rate tree'!R16/2)+4.5 -> 101.9599943
B17: =(0.5*B18+0.5*C18)/(1+'rate tree'!C17/2)+4.5 -> 112.6488888 | C17: =(0.5*C18+0.5*D18)/(1+'rate tree'!D17/2)+4.5 -> 111.6379067 | D17: =(0.5*D18+0.5*E18)/(1+'rate tree'!E17/2)+4.5 -> 111.2160218 | E17: =(0.5*E18+0.5*F18)/(1+'rate tree'!F17/2)+4.5 -> 110.7677916 | F17: =(0.5*F18+0.5*G18)/(1+'rate tree'!G17/2)+4.5 -> 110.2917939 | G17: =(0.5*G18+0.5*H18)/(1+'rate tree'!H17/2)+4.5 -> 109.7865601 | H17: =(0.5*H18+0.5*I18)/(1+'rate tree'!I17/2)+4.5 -> 109.2505785 | I17: =(0.5*I18+0.5*J18)/(1+'rate tree'!J17/2)+4.5 -> 108.6822973 | J17: =(0.5*J18+0.5*K18)/(1+'rate tree'!K17/2)+4.5 -> 108.0801299 | K17: =(0.5*K18+0.5*L18)/(1+'rate tree'!L17/2)+4.5 -> 107.4424601 | L17: =(0.5*L18+0.5*M18)/(1+'rate tree'!M17/2)+4.5 -> 106.7676488 | M17: =(0.5*M18+0.5*N18)/(1+'rate tree'!N17/2)+4.5 -> 106.0540418 | N17: =(0.5*N18+0.5*O18)/(1+'rate tree'!O17/2)+4.5 -> 105.2999788 | O17: =(0.5*O18+0.5*P18)/(1+'rate tree'!P17/2)+4.5 -> 104.5038036 | P17: =(0.5*P18+0.5*Q18)/(1+'rate tree'!Q17/2)+4.5 -> 103.6638763 | Q17: =(0.5*Q18+0.5*R18)/(1+'rate tree'!R17/2)+4.5 -> 102.778586 | R17: =(0.5*R18+0.5*S18)/(1+'rate tree'!S17/2)+4.5 -> 101.846366
B18: =(0.5*B19+0.5*C19)/(1+'rate tree'!C18/2)+4.5 -> 110.8955963 | C18: =(0.5*C19+0.5*D19)/(1+'rate tree'!D18/2)+4.5 -> 109.3855098 | D18: =(0.5*D19+0.5*E19)/(1+'rate tree'!E18/2)+4.5 -> 109.1094738 | E18: =(0.5*E19+0.5*F19)/(1+'rate tree'!F18/2)+4.5 -> 108.8157596 | F18: =(0.5*F19+0.5*G19)/(1+'rate tree'!G18/2)+4.5 -> 108.5033506 | G18: =(0.5*G19+0.5*H19)/(1+'rate tree'!H18/2)+4.5 -> 108.1711879 | H18: =(0.5*H19+0.5*I19)/(1+'rate tree'!I18/2)+4.5 -> 107.8181702 | I18: =(0.5*I19+0.5*J19)/(1+'rate tree'!J18/2)+4.5 -> 107.443155 | J18: =(0.5*J19+0.5*K19)/(1+'rate tree'!K18/2)+4.5 -> 107.0449599 | K18: =(0.5*K19+0.5*L19)/(1+'rate tree'!L18/2)+4.5 -> 106.6223641 | L18: =(0.5*L19+0.5*M19)/(1+'rate tree'!M18/2)+4.5 -> 106.1741111 | M18: =(0.5*M19+0.5*N19)/(1+'rate tree'!N18/2)+4.5 -> 105.6989117 | N18: =(0.5*N19+0.5*O19)/(1+'rate tree'!O18/2)+4.5 -> 105.1954476 | O18: =(0.5*O19+0.5*P19)/(1+'rate tree'!P18/2)+4.5 -> 104.6623756 | P18: =(0.5*P19+0.5*Q19)/(1+'rate tree'!Q18/2)+4.5 -> 104.0983335 | Q18: =(0.5*Q19+0.5*R19)/(1+'rate tree'!R18/2)+4.5 -> 103.5019455 | R18: =(0.5*R19+0.5*S19)/(1+'rate tree'!S18/2)+4.5 -> 102.8718304 | S18: =(0.5*S19+0.5*T19)/(1+'rate tree'!T18/2)+4.5 -> 102.2066083
B19: =(0.5*B20+0.5*C20)/(1+'rate tree'!C19/2)+4.5 -> 109.6823955 | C19: =(0.5*C21+0.5*D21)/(1+'rate tree'!D19/2)+4.5 -> 107.0082527 | D19: =(0.5*D21+0.5*E21)/(1+'rate tree'!E19/2)+4.5 -> 106.8731074 | E19: =(0.5*E21+0.5*F21)/(1+'rate tree'!F19/2)+4.5 -> 106.7290955 | F19: =(0.5*F21+0.5*G21)/(1+'rate tree'!G19/2)+4.5 -> 106.5756774 | G19: =(0.5*G21+0.5*H21)/(1+'rate tree'!H19/2)+4.5 -> 106.4122865 | H19: =(0.5*H21+0.5*I21)/(1+'rate tree'!I19/2)+4.5 -> 106.2383282 | I19: =(0.5*I21+0.5*J21)/(1+'rate tree'!J19/2)+4.5 -> 106.0531801 | J19: =(0.5*J21+0.5*K21)/(1+'rate tree'!K19/2)+4.5 -> 105.8561914 | K19: =(0.5*K21+0.5*L21)/(1+'rate tree'!L19/2)+4.5 -> 105.6466827 | L19: =(0.5*L21+0.5*M21)/(1+'rate tree'!M19/2)+4.5 -> 105.4239461 | M19: =(0.5*M21+0.5*N21)/(1+'rate tree'!N19/2)+4.5 -> 105.1872455 | N19: =(0.5*N21+0.5*O21)/(1+'rate tree'!O19/2)+4.5 -> 104.935817 | O19: =(0.5*O21+0.5*P21)/(1+'rate tree'!P19/2)+4.5 -> 104.6688697 | P19: =(0.5*P21+0.5*Q21)/(1+'rate tree'!Q19/2)+4.5 -> 104.3855868 | Q19: =(0.5*Q21+0.5*R21)/(1+'rate tree'!R19/2)+4.5 -> 104.0851269 | R19: =(0.5*R21+0.5*S21)/(1+'rate tree'!S19/2)+4.5 -> 103.7666258 | S19: =(0.5*S21+0.5*T21)/(1+'rate tree'!T19/2)+4.5 -> 103.4291993 | T19: =(0.5*T21+0.5*U21)/(1+'rate tree'!U19/2)+4.5 -> 103.0719448
B20: =(0.5*B21+0.5*C21)/(1+'rate tree'!C20/2)+4.5 -> 107.1563713 | C20: =(0.5*C21+0.5*D21)/(1+'rate tree'!D20/2)+4.5 -> 107.0309045 | D20: =(0.5*D21+0.5*E21)/(1+'rate tree'!E20/2)+4.5 -> 106.8971605 | E20: =(0.5*E21+0.5*F21)/(1+'rate tree'!F20/2)+4.5 -> 106.7546297 | F20: =(0.5*F21+0.5*G21)/(1+'rate tree'!G20/2)+4.5 -> 106.6027758 | G20: =(0.5*G21+0.5*H21)/(1+'rate tree'!H20/2)+4.5 -> 106.4410359 | H20: =(0.5*H21+0.5*I21)/(1+'rate tree'!I20/2)+4.5 -> 106.2688191 | I20: =(0.5*I21+0.5*J21)/(1+'rate tree'!J20/2)+4.5 -> 106.0855066 | J20: =(0.5*J21+0.5*K21)/(1+'rate tree'!K20/2)+4.5 -> 105.8904513 | K20: =(0.5*K21+0.5*L21)/(1+'rate tree'!L20/2)+4.5 -> 105.6829772 | L20: =(0.5*L21+0.5*M21)/(1+'rate tree'!M20/2)+4.5 -> 105.46238 | M20: =(0.5*M21+0.5*N21)/(1+'rate tree'!N20/2)+4.5 -> 105.2279268 | N20: =(0.5*N21+0.5*O21)/(1+'rate tree'!O20/2)+4.5 -> 104.978857 | O20: =(0.5*O21+0.5*P21)/(1+'rate tree'!P20/2)+4.5 -> 104.7143825 | P20: =(0.5*P21+0.5*Q21)/(1+'rate tree'!Q20/2)+4.5 -> 104.4336892 | Q20: =(0.5*Q21+0.5*R21)/(1+'rate tree'!R20/2)+4.5 -> 104.1359381 | R20: =(0.5*R21+0.5*S21)/(1+'rate tree'!S20/2)+4.5 -> 103.8202673 | S20: =(0.5*S21+0.5*T21)/(1+'rate tree'!T20/2)+4.5 -> 103.485793 | T20: =(0.5*T21+0.5*U21)/(1+'rate tree'!U20/2)+4.5 -> 103.1316147 | U20: =(0.5*U21+0.5*V21)/(1+'rate tree'!V20/2)+4.5 -> 102.756815
B21: 104.5 | C21: 104.5 | D21: 104.5 | E21: 104.5 | F21: 104.5 | G21: 104.5 | H21: 104.5 | I21: 104.5 | J21: 104.5 | K21: 104.5 | L21: 104.5 | M21: 104.5 | N21: 104.5 | O21: 104.5 | P21: 104.5 | Q21: 104.5 | R21: 104.5 | S21: 104.5 | T21: 104.5 | U21: 104.5 | V21: 104.5

Sheet probabilities
A1: =SUM(C1:O1) -> 1 | C1: 1
A2: =SUM(C2:O2) -> 1 | C2: =0.5*C1+0.5*B1 -> 0.5 | D2: =0.5*D1+0.5*C1 -> 0.5
A3: 1 | C3: =0.5*C2+0.5*B2 -> 0.25 | D3: =0.5*D2+0.5*C2 -> 0.5 | E3: =0.5*E2+0.5*D2 -> 0.25
A4: 1 | C4: 0.125 | D4: 0.375 | E4: 0.375 | F4: =0.5*F3+0.5*E3 -> 0.125
A5: 1 | C5: 0.0625 | D5: 0.25 | E5: 0.375 | F5: 0.25 | G5: =0.5*G4+0.5*F4 -> 0.0625
A6: 1 | C6: 0.03125 | D6: 0.15625 | E6: 0.3125 | F6: 0.3125 | G6: 0.15625 | H6: =0.5*H5+0.5*G5 -> 0.03125
A7: 1 | C7: 0.015625 | D7: 0.09375 | E7: 0.234375 | F7: 0.3125 | G7: 0.234375 | H7: 0.09375 | I7: =0.5*I6+0.5*H6 -> 0.015625
A8: 1 | C8: 0.0078125 | D8: 0.0546875 | E8: 0.1640625 | F8: 0.2734375 | G8: 0.2734375 | H8: 0.1640625 | I8: 0.0546875 | J8: =0.5*J7+0.5*I7 -> 0.0078125
A9: 1 | C9: 0.00390625 | D9: 0.03125 | E9: 0.109375 | F9: 0.21875 | G9: 0.2734375 | H9: 0.21875 | I9: 0.109375 | J9: 0.03125 | K9: =0.5*K8+0.5*J8 -> 0.00390625
A10: 1 | C10: 0.001953125 | D10: 0.017578125 | E10: 0.0703125 | F10: 0.1640625 | G10: 0.24609375 | H10: 0.24609375 | I10: 0.1640625 | J10: 0.0703125 | K10: 0.017578125 | L10: =0.5*L9+0.5*K9 -> 0.001953125
A11: 1 | C11: 0.0009765625 | D11: 0.009765625 | E11: 0.0439453125 | F11: 0.1171875 | G11: 0.205078125 | H11: 0.24609375 | I11: 0.205078125 | J11: 0.1171875 | K11: 0.0439453125 | L11: 0.009765625 | M11: =0.5*M10+0.5*L10 -> 0.0009765625
A12: =SUM(C12:V12) -> 1 | C12: 0.00048828125 | D12: 0.00537109375 | E12: 0.02685546875 | F12: 0.08056640625 | G12: 0.1611328125 | H12: 0.2255859375 | I12: 0.2255859375 | J12: 0.1611328125 | K12: 0.08056640625 | L12: 0.02685546875 | M12: 0.00537109375 | N12: =0.5*N11+0.5*M11 -> 0.00048828125
A13: 1 | C13: 0.000244140625 | D13: 0.0029296875 | E13: 0.01611328125 | F13: 0.0537109375 | G13: 0.1208496094 | H13: 0.193359375 | I13: 0.2255859375 | J13: 0.193359375 | K13: 0.1208496094 | L13: 0.0537109375 | M13: 0.01611328125 | N13: 0.0029296875 | O13: =0.5*O12+0.5*N12 -> 0.000244140625
A14: 1 | C14: 0.0001220703125 | D14: 0.001586914062 | E14: 0.009521484375 | F14: 0.03491210938 | G14: 0.08728027344 | H14: 0.1571044922 | I14: 0.2094726562 | J14: 0.2094726562 | K14: 0.1571044922 | L14: 0.08728027344 | M14: 0.03491210938 | N14: 0.009521484375 | O14: 0.001586914062 | P14: =0.5*P13+0.5*O13 -> 0.0001220703125
A15: 1 | C15: 6.103515625e-05 | D15: 0.0008544921875 | E15: 0.005554199219 | F15: 0.02221679688 | G15: 0.06109619141 | H15: 0.1221923828 | I15: 0.1832885742 | J15: 0.2094726562 | K15: 0.1832885742 | L15: 0.1221923828 | M15: 0.06109619141 | N15: 0.02221679688 | O15: 0.005554199219 | P15: 0.0008544921875 | Q15: =0.5*Q14+0.5*P14 -> 6.103515625e-05
A16: 1 | C16: 3.051757812e-05 | D16: 0.0004577636719 | E16: 0.003204345703 | F16: 0.01388549805 | G16: 0.04165649414 | H16: 0.09164428711 | I16: 0.1527404785 | J16: 0.1963806152 | K16: 0.1963806152 | L16: 0.1527404785 | M16: 0.09164428711 | N16: 0.04165649414 | O16: 0.01388549805 | P16: 0.003204345703 | Q16: 0.0004577636719 | R16: =0.5*R15+0.5*Q15 -> 3.051757812e-05
A17: 1 | C17: 1.525878906e-05 | D17: 0.000244140625 | E17: 0.001831054688 | F17: 0.008544921875 | G17: 0.02777099609 | H17: 0.06665039062 | I17: 0.1221923828 | J17: 0.1745605469 | K17: 0.1963806152 | L17: 0.1745605469 | M17: 0.1221923828 | N17: 0.06665039062 | O17: 0.02777099609 | P17: 0.008544921875 | Q17: 0.001831054688 | R17: 0.000244140625 | S17: =0.5*S16+0.5*R16 -> 1.525878906e-05
A18: 1 | C18: 7.629394531e-06 | D18: 0.000129699707 | E18: 0.001037597656 | F18: 0.005187988281 | G18: 0.01815795898 | H18: 0.04721069336 | I18: 0.09442138672 | J18: 0.1483764648 | K18: 0.1854705811 | L18: 0.1854705811 | M18: 0.1483764648 | N18: 0.09442138672 | O18: 0.04721069336 | P18: 0.01815795898 | Q18: 0.005187988281 | R18: 0.001037597656 | S18: 0.000129699707 | T18: =0.5*T17+0.5*S17 -> 7.629394531e-06
A19: 1 | C19: 3.814697266e-06 | D19: 6.866455078e-05 | E19: 0.0005836486816 | F19: 0.003112792969 | G19: 0.01167297363 | H19: 0.03268432617 | I19: 0.07081604004 | J19: 0.1213989258 | K19: 0.1669235229 | L19: 0.1854705811 | M19: 0.1669235229 | N19: 0.1213989258 | O19: 0.07081604004 | P19: 0.03268432617 | Q19: 0.01167297363 | R19: 0.003112792969 | S19: 0.0005836486816 | T19: 6.866455078e-05 | U19: =0.5*U18+0.5*T18 -> 3.814697266e-06
A20: =SUM(C20:V20) -> 1 | C20: 1.907348633e-06 | D20: 3.623962402e-05 | E20: 0.0003261566162 | F20: 0.001848220825 | G20: 0.007392883301 | H20: 0.0221786499 | I20: 0.05175018311 | J20: 0.09610748291 | K20: 0.1441612244 | L20: 0.176197052 | M20: 0.176197052 | N20: 0.1441612244 | O20: 0.09610748291 | P20: 0.05175018311 | Q20: 0.0221786499 | R20: 0.007392883301 | S20: 0.001848220825 | T20: 0.0003261566162 | U20: 3.623962402e-05 | V20: =0.5*V19+0.5*U19 -> 1.907348633e-06

Sheet option
B1: =(0.5*B2+0.5*C2)/(1+'rate tree'!C1*17/365) -> 0.5811351393 | E1: strike | F1: 120
B2: =(0.5*B3+0.5*C3)/(1+'rate tree'!C2/2) -> 0.8604507725 | C2: =(0.5*C3+0.5*D3)/(1+'rate tree'!D2/2) -> 0.3020901717
B3: =(0.5*B4+0.5*C4)/(1+'rate tree'!C3/2) -> 1.244249681 | C3: =(0.5*C4+0.5*D4)/(1+'rate tree'!D3/2) -> 0.4832661895 | D3: =(0.5*D4+0.5*E4)/(1+'rate tree'!E3/2) -> 0.1235358598
B4: =(0.5*B5+0.5*C5)/(1+'rate tree'!C4/2) -> 1.747523874 | C4: =(0.5*C5+0.5*D5)/(1+'rate tree'!D4/2) -> 0.7567587788 | D4: =(0.5*D5+0.5*E5)/(1+'rate tree'!E4/2) -> 0.2164077074 | E4: =(0.5*E5+0.5*F5)/(1+'rate tree'!F4/2) -> 0.03249922271
B5: =(0.5*B6+0.5*C6)/(1+'rate tree'!C5/2) -> 2.371708712 | C5: =(0.5*C6+0.5*D6)/(1+'rate tree'!D5/2) -> 1.153488353 | D5: =(0.5*D6+0.5*E6)/(1+'rate tree'!E5/2) -> 0.3739398511 | E5: =(0.5*E6+0.5*F6)/(1+'rate tree'!F5/2) -> 0.06311384889 | F5: =(0.5*F6+0.5*G6)/(1+'rate tree'!G5/2) -> 0.002562721276
B6: =(0.5*B7+0.5*C7)/(1+'rate tree'!C6/2) -> 3.094856684 | C6: =(0.5*C7+0.5*D7)/(1+'rate tree'!D6/2) -> 1.698736236 | D6: =(0.5*D7+0.5*E7)/(1+'rate tree'!E6/2) -> 0.6341831101 | E6: =(0.5*E7+0.5*F7)/(1+'rate tree'!F6/2) -> 0.1226371444 | F6: =(0.5*F7+0.5*G7)/(1+'rate tree'!G6/2) -> 0.005194682712 | G6: =(0.5*G7+0.5*H7)/(1+'rate tree'!H6/2) -> 0
B7: =(0.5*B8+0.5*C8)/(1+'rate tree'!C7/2) -> 3.871279152 | C7: =(0.5*C8+0.5*D8)/(1+'rate tree'!D7/2) -> 2.394066134 | D7: =(0.5*D8+0.5*E8)/(1+'rate tree'!E7/2) -> 1.047582155 | E7: =(0.5*E8+0.5*F8)/(1+'rate tree'!F7/2) -> 0.2383332402 | F7: =(0.5*F8+0.5*G8)/(1+'rate tree'!G7/2) -> 0.01055211993 | G7: =(0.5*G8+0.5*H8)/(1+'rate tree'!H7/2) -> 0 | H7: =(0.5*H8+0.5*I8)/(1+'rate tree'!I7/2) -> 0
B8: =(0.5*B9+0.5*C9)/(1+'rate tree'!C8/2) -> 4.654775052 | C8: =(0.5*C9+0.5*D9)/(1+'rate tree'!D8/2) -> 3.19301134 | D8: =(0.5*D9+0.5*E9)/(1+'rate tree'!E8/2) -> 1.664469229 | E8: =(0.5*E9+0.5*F9)/(1+'rate tree'!F8/2) -> 0.463031938 | F8: =(0.5*F9+0.5*G9)/(1+'rate tree'!G8/2) -> 0.02147409274 | G8: =(0.5*G9+0.5*H9)/(1+'rate tree'!H8/2) -> 0 | H8: =(0.5*H9+0.5*I9)/(1+'rate tree'!I8/2) -> 0 | I8: =(0.5*I9+0.5*J9)/(1+'rate tree'!J8/2) -> 0
B9: =(0.5*B10+0.5*C10)/(1+'rate tree'!C9/2) -> 5.445958113 | C9: =(0.5*C10+0.5*D10)/(1+'rate tree'!D9/2) -> 4.000308748 | D9: =(0.5*D10+0.5*E10)/(1+'rate tree'!E9/2) -> 2.485771843 | E9: =(0.5*E10+0.5*F10)/(1+'rate tree'!F9/2) -> 0.8988134656 | F9: =(0.5*F10+0.5*G10)/(1+'rate tree'!G9/2) -> 0.04376525944 | G9: =(0.5*G10+0.5*H10)/(1+'rate tree'!H9/2) -> 0 | H9: =(0.5*H10+0.5*I10)/(1+'rate tree'!I9/2) -> 0 | I9: =(0.5*I10+0.5*J10)/(1+'rate tree'!J9/2) -> 0 | J9: =(0.5*J10+0.5*K10)/(1+'rate tree'!K9/2) -> 0
B10: =MAX('9% 11-18-18'!B10-option!$F$1,0) -> 6.245939437 | C10: =MAX('9% 11-18-18'!C10-option!$F$1,0) -> 4.816784325 | D10: =MAX('9% 11-18-18'!D10-option!$F$1,0) -> 3.317801899 | E10: =MAX('9% 11-18-18'!E10-option!$F$1,0) -> 1.742627741 | F10: =MAX('9% 11-18-18'!F10-option!$F$1,0) -> 0.08931443947 | G10: =MAX('9% 11-18-18'!G10-option!$F$1,0) -> 0 | H10: =MAX('9% 11-18-18'!H10-option!$F$1,0) -> 0 | I10: =MAX('9% 11-18-18'!I10-option!$F$1,0) -> 0 | J10: =MAX('9% 11-18-18'!J10-option!$F$1,0) -> 0 | K10: =MAX('9% 11-18-18'!K10-option!$F$1,0) -> 0
B17: =(0.5*B18+0.5*C1)/(1+'rate tree'!C1*17/365) -> 0.4204380317
B18: =(0.5*B19+0.5*C19)/(1+'rate tree'!C2/2) -> 0.8410718838 | C18: =(0.5*C19+0.5*D19)/(1+'rate tree'!D2/2) -> 1.843708258
B19: =(0.5*B20+0.5*C20)/(1+'rate tree'!C3/2) -> 0.4541407435 | C19: =(0.5*C20+0.5*D20)/(1+'rate tree'!D3/2) -> 1.234468383 | D19: =(0.5*D20+0.5*E20)/(1+'rate tree'!E3/2) -> 2.468948855
B20: =(0.5*B21+0.5*C21)/(1+'rate tree'!C4/2) -> 0.1905911948 | C20: =(0.5*C21+0.5*D21)/(1+'rate tree'!D4/2) -> 0.723451062 | D20: =(0.5*D21+0.5*E21)/(1+'rate tree'!E4/2) -> 1.762432049 | E20: =(0.5*E21+0.5*F21)/(1+'rate tree'!F4/2) -> 3.212143602
B21: =(0.5*B22+0.5*C22)/(1+'rate tree'!C5/2) -> 0.04758248975 | C21: =(0.5*C22+0.5*D22)/(1+'rate tree'!D5/2) -> 0.3368880921 | D21: =(0.5*D22+0.5*E22)/(1+'rate tree'!E5/2) -> 1.12331242 | E21: =(0.5*E22+0.5*F22)/(1+'rate tree'!F5/2) -> 2.436068422 | F21: =(0.5*F22+0.5*G22)/(1+'rate tree'!G5/2) -> 4.055242972
B22: =(0.5*B23+0.5*C23)/(1+'rate tree'!C6/2) -> 0 | C22: =(0.5*C23+0.5*D23)/(1+'rate tree'!D6/2) -> 0.09617162714 | D22: =(0.5*D23+0.5*E23)/(1+'rate tree'!E6/2) -> 0.5851813706 | E22: =(0.5*E23+0.5*F23)/(1+'rate tree'!F6/2) -> 1.68830082 | F22: =(0.5*F23+0.5*G23)/(1+'rate tree'!G6/2) -> 3.24575221 | G22: =(0.5*G23+0.5*H23)/(1+'rate tree'!H6/2) -> 4.97429917
B23: =(0.5*B24+0.5*C24)/(1+'rate tree'!C7/2) -> 0 | C23: =(0.5*C24+0.5*D24)/(1+'rate tree'!D7/2) -> 0 | D23: =(0.5*D24+0.5*E24)/(1+'rate tree'!E7/2) -> 0.1948442077 | E23: =(0.5*E24+0.5*F24)/(1+'rate tree'!F7/2) -> 0.9917117274 | F23: =(0.5*F24+0.5*G24)/(1+'rate tree'!G7/2) -> 2.434602215 | G23: =(0.5*G24+0.5*H24)/(1+'rate tree'!H7/2) -> 4.158594808 | H23: =(0.5*H24+0.5*I24)/(1+'rate tree'!I7/2) -> 5.955829693
B24: =(0.5*B25+0.5*C25)/(1+'rate tree'!C8/2) -> 0 | C24: =(0.5*C25+0.5*D25)/(1+'rate tree'!D8/2) -> 0 | D24: =(0.5*D25+0.5*E25)/(1+'rate tree'!E8/2) -> 0 | E24: =(0.5*E25+0.5*F25)/(1+'rate tree'!F8/2) -> 0.3957028836 | F24: =(0.5*F25+0.5*G25)/(1+'rate tree'!G8/2) -> 1.620341174 | G24: =(0.5*G25+0.5*H25)/(1+'rate tree'!H8/2) -> 3.334196309 | H24: =(0.5*H25+0.5*I25)/(1+'rate tree'!I8/2) -> 5.13830483 | I24: =(0.5*I25+0.5*J25)/(1+'rate tree'!J8/2) -> 7.010356137
B25: =(0.5*B26+0.5*C26)/(1+'rate tree'!C9/2) -> 0 | C25: =(0.5*C26+0.5*D26)/(1+'rate tree'!D9/2) -> 0 | D25: =(0.5*D26+0.5*E26)/(1+'rate tree'!E9/2) -> 0 | E25: =(0.5*E26+0.5*F26)/(1+'rate tree'!F9/2) -> 0 | F25: =(0.5*F26+0.5*G26)/(1+'rate tree'!G9/2) -> 0.805519207 | G25: =(0.5*G26+0.5*H26)/(1+'rate tree'!H9/2) -> 2.496815971 | H25: =(0.5*H26+0.5*I26)/(1+'rate tree'!I9/2) -> 4.306909625 | I25: =(0.5*I26+0.5*J26)/(1+'rate tree'!J9/2) -> 6.19217452 | J25: =(0.5*J26+0.5*K26)/(1+'rate tree'!K9/2) -> 8.15230217
B26: =MAX(option!$F$1-'9% 11-18-18'!B10,0) -> 0 | C26: =MAX(option!$F$1-'9% 11-18-18'!C10,0) -> 0 | D26: =MAX(option!$F$1-'9% 11-18-18'!D10,0) -> 0 | E26: =MAX(option!$F$1-'9% 11-18-18'!E10,0) -> 0 | F26: =MAX(option!$F$1-'9% 11-18-18'!F10,0) -> 0 | G26: =MAX(option!$F$1-'9% 11-18-18'!G10,0) -> 1.643872272 | H26: =MAX(option!$F$1-'9% 11-18-18'!H10,0) -> 3.458412886 | I26: =MAX(option!$F$1-'9% 11-18-18'!I10,0) -> 5.355490332 | J26: =MAX(option!$F$1-'9% 11-18-18'!J10,0) -> 7.335944259 | K26: =MAX(option!$F$1-'9% 11-18-18'!K10,0) -> 9.400222862

Sheet Sheet5
